Workbook

Sheet PLAN SERVIÇO
A3: SINAPI-BA 08/2023 (NÃO DESONERADO) | E3: % BDI serv. adotado: | H3: 0.25
A4: ORSE 08/2023 | E4: % BDI mater. adotado: | H4: 0.15
A5: ITEM | B5: REFERÊNCIA | C5: DESCRIÇÃO | D5: UNID | E5: QUANT. | F5: P. UNIT. S/BDI | G5: P. UNIT. C/BDI | H5: P. TOTAL
A6: 1.0 | C6: SERVIÇOS PRELIMINARES | H6: =SUM(H7:H14) -> 604984.72
A7: 1.1 | B7: 103689 | C7: PLACA DE OBRA EM CHAPA DE ACO GALVANIZADO | D7: m² | E7: 6 | F7: 388.71 | G7: =F7*(1+($H$3)) -> 485.89 | H7: =ROUND(E7*G7,2) -> 2915.34
A8: 1.2 | B8: CPU 001 | C8: MOBILIZAÇÃO DE EQUIPAMENTO, MATERIAIS E PESSOAL, COM DESLOCAMENTOS INTERNOS. | D8: UNID | E8: 1 | F8: =CPU!I22 -> 1536.3 | G8: 1920.38 | H8: 1920.38
A9: 1.3 | B9: CPU 001 | C9: MOBILIZAÇÃO DE EQUIPAMENTO, MATERIAIS E PESSOAL, COM DESLOCAMENTOS INTERNOS. | D9: UNID | E9: 1 | F9: =CPU!I22 -> 1536.3 | G9: 1920.38 | H9: 1920.38
A10: 1.4 | B10: 93206 | C10: EXECUÇÃO DE ESCRITÓRIO EM CANTEIRO DE OBRA EM ALVENARIA, NÃO INCLUSO MOBILIÁRIO E EQUIPAMENTOS. AF_02/2016 | D10: M² | E10: 30 | F10: 1174.31 | G10: 1467.89 | H10: 44036.7
A11: 1.5 | B11: CPU 002 | C11: ADMINISTRAÇÃO E MANUTENÇÃO DO CANTEIRO DE OBRAS | D11: UND | E11: 12 | F11: =CPU!I47 -> 23724.53 | G11: 29655.66 | H11: 355867.92
A12: 1.6 | B12: 93209 | C12: EXECUÇÃO DE ALMOXARIFADO EM CANTEIRO DE OBRA EM ALVENARIA, INCLUSO PRATELEIRAS. AF_02/2016 | D12: M² | E12: 40 | F12: 976.48 | G12: 1220.6 | H12: 48824
A13: 1.7 | B13: 101146 | C13: ESCAVAÇÃO HORIZONTAL, INCLUINDO CARGA, DESCARGA E TRANSPORTE EM SOLO DE 1A CATEGORIA COM TRATOR DE ESTEIRAS (170HP/LÂMINA: 5,20M3) E CAMINHÃO BASCULANTE DE 14M3, DMT ATÉ 200M | D13: M² | E13: 8000 | F13: 14.12 | G13: 17.65 | H13: =ROUND(E13*G13,2) -> 141200
A14: 1.8 | B14: 100577 | C14: REGULARIZAÇÃO E COMPACTAÇÃO DE SUBLEITO DE SOLO PREDOMINANTEMENTE ARENOSO | D14: M² | E14: 5000 | F14: 1.33 | G14: 1.66 | H14: =ROUND(E14*G14,2) -> 8300
A15: 2.0 | C15: RESERVATÓRIO | H15: =H16+H18+H22+H41+H43+H28+H56+H60+H48+H52 -> 206288.88
A16: 2.1 | C16: LOCAÇÃO DA OBRA | H16: =SUM(H17) -> 203.64
A17: 2.1.1 | B17: 50/ORSE | C17: LOCAÇÃO DE CONSTRUÇÃO DE EDIFICAÇÃO ATÉ 200M², INCLUSIVE EXECUÇÃO DE GABARITO | D17: m² | E17: 18.7 | F17: 9.47 | G17: =F17*(1+($H$4)) -> 10.89 | H17: =ROUND(E17*G17,2) -> 203.64
A18: 2.2 | C18: MOVIMENTO DE TERRA | H18: =SUM(H19:H21) -> 1831.5
A19: 2.2.1 | B19: 09897/ORSE | C19: LIMPEZA SUPERFICIAL DA CAMADA VEGETAL EM JAZIDA | D19: m² | E19: 31.8 | F19: 1.78 | G19: =F19*(1+($H$3)) -> 2.23 | H19: =ROUND(E19*G19,2) -> 70.91
A20: 2.2.2 | B20: 101208 | C20: ESCAVAÇÃO VERTICAL A CÉU ABERTO, INCLUINDO CARGA, DESCARGA E TRANSPORTE, EM SOLO DE 1ª CATEGORIA COM ESCAVADEIRA HIDRÁULICA (CAÇAMBA: 1,2 M³ / 155 HP), FROTA DE 3 CAMINHÕES BASCULANTES DE 14 M³, DMT DE 1 KM E VELOCIDADE MÉDIA 14 KM/H. AF_12/2013 | D20: m³ | E20: 58 | F20: 10.44 | G20: =F20*(1+($H$3)) -> 13.05 | H20: =ROUND(E20*G20,2) -> 756.9
A21: 2.2.3 | B21: 93382 | C21: REATERRO MANUAL COM COMPACTADOR DE SOLOS A PERCUSSÃO . AF_10/2017 | D21: m³ | E21: 29 | F21: 27.69 | G21: =F21*(1+($H$3)) -> 34.61 | H21: =ROUND(E21*G21,2) -> 1003.69
A22: 2.3 | C22: INFRA-ESTRUTURA / FUNDAÇÕES | H22: =SUM(H23:H27) -> 4395.05
A23: 2.3.1 | B23: 96543 | C23: ARMAÇÃO DE BLOCO, VIGA BALDRAME E SAPATA UTILIZANDO AÇO CA-60 DE 5 MM - MONTAGEM. AF_06/2017 | D23: kg | E23: 11 | F23: 18.49 | G23: =F23*(1+($H$3)) -> 23.11 | H23: =ROUND(E23*G23,2) -> 254.21
A24: 2.3.2 | B24: 96546 | C24: ARMAÇÃO DE BLOCO, VIGA BALDRAME OU SAPATA UTILIZANDO AÇO CA-50 DE 10 MM - MONTAGEM. AF_06/2017 | D24: kg | E24: 153 | F24: 13.32 | G24: =F24*(1+($H$3)) -> 16.65 | H24: 2547.45
A25: 2.3.3 | B25: 97086 | C25: FABRICAÇÃO, MONTAGEM E DESMONTAGEM DE FORMA PARA RADIER, EM MADEIRA SERRADA, 4 UTILIZAÇÕES. AF_09/2017 | D25: m² | E25: 3.7 | F25: 135.45 | G25: =F25*(1+($H$3)) -> 169.31 | H25: =ROUND(E25*G25,2) -> 626.45
A26: 2.3.4 | B26: 11488/ORSE | C26: LANÇAMENTO DE CONCRETO SIMPLES FABRICADO NA OBRA EM FUNDAÇÕES | D26: m³ | E26: 1.4 | F26: 27.98 | G26: =F26*(1+($H$3)) -> 34.98 | H26: 48.97
A27: 2.3.5 | B27: 94971 | C27: CONCRETO FCK = 25MPA, TRAÇO 1:2,3:2,7 (CIMENTO/ AREIA MÉDIA/ BRITA 1) - PREPARO MECÂNICO COM BETONEIRA 600 L. AF_07/2016 | D27: m³ | E27: 1.4 | F27: 524.55 | G27: =F27*(1+($H$3)) -> 655.69 | H27: 917.97
A28: 2.4 | C28: SUPERESTRUTURA | H28: =SUM(H29:H40) -> 84060.6
A29: 2.4.1 | B29: 101792 | C29: ESCORAMENTO FORMAS H=3,50 A 4,00 M, COM MADEIRA DE 3A QUALIDADE, NAO APARELHADA, APROVEITAMENTO TABUAS 3X E PRUMOS 4X. | D29: m³ | E29: 1.61 | F29: 18.35 | G29: =F29*(1+($H$3)) -> 22.94 | H29: =ROUND(E29*G29,2) -> 36.93
A30: 2.4.2 | B30: 92771 | C30: ARMAÇÃO DE LAJE DE UMA ESTRUTURA CONVENCIONAL DE CONCRETO ARMADO EM UM EDIFÍCIO DE MÚLTIPLOS PAVIMENTOS UTILIZANDO AÇO CA-50 DE 10,0 MM - MONTAGEM. AF_12/2015 | D30: kg | E30: 328 | F30: 10.83 | G30: 13.54 | H30: =ROUND(E30*G30,2) -> 4441.12
A31: 2.4.3 | B31: 92759 | C31: ARMAÇÃO DE PILAR OU VIGA DE UMA ESTRUTURA CONVENCIONAL DE CONCRETO ARMADO EM UM EDIFÍCIO DE MÚLTIPLOS PAVIMENTOS UTILIZANDO AÇO CA-60 DE 5,0 MM - MONTAGEM. AF_12/2015 | D31: kg | E31: 38 | F31: 14.65 | G31: 18.31 | H31: =ROUND(E31*G31,2) -> 695.78
A32: 2.4.4 | B32: 92760 | C32: ARMAÇÃO DE PILAR OU VIGA DE UMA ESTRUTURA CONVENCIONAL DE CONCRETO ARMADO EM UM EDIFÍCIO DE MÚLTIPLOS PAVIMENTOS UTILIZANDO AÇO CA-50 DE 6,3 MM - MONTAGEM. AF_12/2015 | D32: m² | E32: 91 | F32: 13.69 | G32: 17.11 | H32: =ROUND(E32*G32,2) -> 1557.01
A33: 2.4.5 | B33: 92761 | C33: ARMAÇÃO DE PILAR OU VIGA DE UMA ESTRUTURA CONVENCIONAL DE CONCRETO ARMADO EM UM EDIFÍCIO DE MÚLTIPLOS PAVIMENTOS UTILIZANDO AÇO CA-50 DE 8,0MM - MONTAGEM. AF_12/2015 | D33: kg | E33: 877 | F33: 12.75 | G33: 15.94 | H33: =ROUND(E33*G33,2) -> 13979.38
A34: 2.4.6 | B34: 92762 | C34: ARMAÇÃO DE PILAR OU VIGA DE UMA ESTRUTURA CONVENCIONAL DE CONCRETO ARMADO EM UM EDIFÍCIO DE MÚLTIPLOS PAVIMENTOS UTILIZANDO AÇO CA-50 DE 10,0 MM - MONTAGEM. AF_12/2015 | D34: kg | E34: 225 | F34: 11.33 | G34: 14.16 | H34: =ROUND(E34*G34,2) -> 3186
A35: 2.4.7 | B35: 92763 | C35: ARMAÇÃO DE PILAR OU VIGA DE UMA ESTRUTURA CONVENCIONAL DE CONCRETO ARMADO EM UM EDIFÍCIO DE MÚLTIPLOS PAVIMENTOS UTILIZANDO AÇO CA-50 DE 12,5 MM - MONTAGEM. AF_12/2015 | D35: kg | E35: 479 | F35: 9.5 | G35: 11.88 | H35: 5690.52
A36: 2.4.8 | B36: 92764 | C36: ARMAÇÃO DE PILAR OU VIGA DE UMA ESTRUTURA CONVENCIONAL DE CONCRETO ARMADO EM UM EDIFÍCIO DE MÚLTIPLOS PAVIMENTOS UTILIZANDO AÇO CA-50 DE 16,0 MM - MONTAGEM. AF_12/2015 | D36: kg | E36: 52 | F36: 9.16 | G36: 11.45 | H36: 595.4
A37: 2.4.9 | B37: 92264 | C37: FABRICAÇÃO DE FÔRMA PARA PILARES E ESTRUTURAS SIMILARES, EM CHAPA DE MADEIRA COMPENSADA PLASTIFICADA, E = 18 MM. AF_12/2015 | D37: m² | E37: 43.2 | F37: 211.39 | G37: 264.24 | H37: =ROUND(E37*G37,2) -> 11415.17
A38: 2.4.10 | B38: 92266 | C38: FABRICAÇÃO DE FÔRMA PARA VIGAS, EM CHAPA DE MADEIRA COMPENSADA PLASTIFICADA, E = 18 MM. AF_12/2015 | D38: m² | E38: 111.3 | F38: 157.4 | G38: 196.75 | H38: 21898.28
A39: 2.4.11 | B39: 103669 | C39: CONCRETAGEM DE PILARES, FCK = 25 MPA, COM USO DE BALDES EM EDIFICAÇÃO COM SEÇÃO MÉDIA DE PILARES MENOR OU IGUAL A 0,25 M² - LANÇAMENTO, ADENSAMENTO E ACABAMENTO. AF_12/2015 | D39: m³ | E39: 11.1 | F39: 961.83 | G39: 1202.29 | H39: 13345.42
A40: 2.4.12 | B40: 103682 | C40: CONCRETAGEM DE VIGAS E LAJES, FCK=25 MPA, PARA QUALQUER TIPO DE LAJE COM BALDES EM EDIFICAÇÃO TÉRREA, COM ÁREA MÉDIA DE LAJES MENOR OU IGUAL A 20 M² - LANÇAMENTO, ADENSAMENTO E ACABAMENTO. AF_12/2015 | D40: m³ | E40: 5.9 | F40: 978.93 | G40: 1223.66 | H40: 7219.59
A41: 2.5 | C41: ALVENARIA / DIVISÓRIAS | H41: =SUM(H42:H42) -> 47351.01
A42: 2.5.1 | B42: 103351 | C42: (COMPOSIÇÃO REPRESENTATIVA) DO SERVIÇO DE ALVENARIA DE VEDAÇÃO DE BLOCOS VAZADOS DE CERÂMICA DE 9X19X19CM (ESPESSURA 9CM), PARA EDIFICAÇÃO HABITACIONAL UNIFAMILIAR (CASA) E EDIFICAÇÃO PÚBLICA PADRÃO. AF_11/2014 - (CAIXAS) | D42: m² | E42: 208.88 | F42: 181.35 | G42: =F42*(1+($H$3)) -> 226.69 | H42: =ROUND(E42*G42,2) -> 47351.01
A43: 2.6 | C43: REVESTIMENTOS | H43: =SUM(H44:H47) -> 35183.75
A44: 2.6.1 | B44: 87879 | C44: CHAPISCO APLICADO EM ALVENARIAS E ESTRUTURAS DE CONCRETO INTERNAS, COM COLHER DE PEDREIRO. ARGAMASSA TRAÇO 1:3 COM PREPARO EM BETONEIRA 400L. AF_06/2014 | D44: m² | E44: 208.88 | F44: 4.78 | G44: =F44*(1+($H$3)) -> 5.98 | H44: =ROUND(E44*G44,2) -> 1249.1
A45: 2.6.2 | B45: 87894 | C45: CHAPISCO APLICADO EM ALVENARIA (SEM PRESENÇA DE VÃOS) E ESTRUTURAS DE CONCRETO DE FACHADA, COM COLHER DE PEDREIRO. ARGAMASSA TRAÇO 1:3 COM PREPARO EM BETONEIRA 400L. AF_06/2014 | D45: m² | E45: 208.88 | F45: 7.41 | G45: =F45*(1+($H$3)) -> 9.26 | H45: =ROUND(E45*G45,2) -> 1934.23
A46: 2.6.3 | B46: 87529 | C46: MASSA ÚNICA, PARA RECEBIMENTO DE PINTURA, EM ARGAMASSA TRAÇO 1:2:8, PREPARO MECÂNICO COM BETONEIRA 400L, APLICADA MANUALMENTE EM FACES INTERNAS DE PAREDES, ESPESSURA DE 20MM, COM EXECUÇÃO DE TALISCAS. AF_06/2014 | D46: m² | E46: 208.88 | F46: 43.27 | G46: =F46*(1+($H$3)) -> 54.09 | H46: =ROUND(E46*G46,2) -> 11298.32
A47: 2.6.4 | B47: 87781 | C47: EMBOÇO OU MASSA ÚNICA EM ARGAMASSA TRAÇO 1:2:8, PREPARO MANUAL, APLICADA MANUALMENTE EM PANOS DE FACHADA COM PRESENÇA DE VÃOS, ESPESSURA DE 35 MM. AF_06/2014 | D47: m² | E47: 208.88 | F47: 79.29 | G47: =F47*(1+($H$3)) -> 99.11 | H47: =ROUND(E47*G47,2) -> 20702.1
A48: 2.7 | C48: PINTURA E EMASSAMENTO INTERNO | H48: =SUM(H49:H51) -> 11764.12
A49: 2.7.1 | B49: CPU 006 | C49: EMASSAMENTO COM MASSA A OLEO, UMA DEMAO | D49: m² | E49: 208.88 | F49: =CPU!I94 -> 29.85 | G49: =F49*(1+($H$3)) -> 37.31 | H49: =ROUND(E49*G49,2) -> 7793.31
A50: 2.7.2 | B50: 88411 | C50: APLICAÇÃO MANUAL DE FUNDO SELADOR ACRÍLICO EM PANOS COM PRESENÇA DE VÃOS DE EDIFÍCIOS DE MÚLTIPLOS PAVIMENTOS. AF_06/2014P | D50: m² | E50: 208.88 | F50: 3.16 | G50: =F50*(1+($H$3)) -> 3.95 | H50: =ROUND(E50*G50,2) -> 825.08
A51: 2.7.3 | B51: 88489 | C51: APLICAÇÃO MANUAL DE PINTURA COM TINTA LÁTEX ACRÍLICA EM PAREDES, DUAS DEMÃOS. AF_06/2014 | D51: m² | E51: 208.88 | F51: 12.05 | G51: =F51*(1+($H$3)) -> 15.06 | H51: =ROUND(E51*G51,2) -> 3145.73
A52: 2.8 | C52: PINTURA E EMASSAMENTO EXTERNO | H52: =SUM(H53:H55) -> 15053.98
A53: 2.8.1 | B53: CPU 006 | C53: EMASSAMENTO COM MASSA A OLEO, UMA DEMAO | D53: m² | E53: 208.88 | F53: =CPU!I94 -> 29.85 | G53: =F53*(1+($H$3)) -> 37.31 | H53: =ROUND(E53*G53,2) -> 7793.31
A54: 2.8.2 | B54: 88411 | C54: APLICAÇÃO MANUAL DE FUNDO SELADOR ACRÍLICO EM PANOS COM PRESENÇA DE VÃOS DE EDIFÍCIOS DE MÚLTIPLOS PAVIMENTOS. AF_06/2014P | D54: m² | E54: 208.88 | F54: 3.16 | G54: =F54*(1+($H$3)) -> 3.95 | H54: =ROUND(E54*G54,2) -> 825.08
A55: 2.8.3 | B55: 95624 | C55: APLICAÇÃO MANUAL DE TINTA LÁTEX ACRÍLICA EM SUPERFÍCIES EXTERNAS DE SACADA DE EDIFÍCIOS DE MÚLTIPLOS PAVIMENTOS, DUAS DEMÃOS. AF_11/2016 | D55: m² | E55: 208.88 | F55: 24.65 | G55: =F55*(1+($H$3)) -> 30.81 | H55: =ROUND(E55*G55,2) -> 6435.59
A56: 2.9 | C56: COBERTURAS E IMPERMEABILIZAÇÕES | H56: =SUM(H57:H59) -> 4291.77
A57: 2.9.1 | B57: 92255 | C57: INSTALAÇÃO DE TESOURA (INTEIRA OU MEIA), EM AÇO, PARA VÃOS MAIORES OU IGUAIS A 3,0 M E MENORES QUE 6,0 M, INCLUSO IÇAMENTO. AF_12/2015 | D57: UNID | E57: 2 | F57: 240.88 | G57: =F57*(1+($H$3)) -> 301.1 | H57: =ROUND(E57*G57,2) -> 602.2
A58: 2.9.2 | B58: 92580 | C58: TRAMA DE AÇO COMPOSTA POR TERÇAS PARA TELHADOS DE ATÉ 2 ÁGUAS PARA TELHA ONDULADA DE FIBROCIMENTO, METÁLICA, PLÁSTICA OU TERMOACÚSTICA, INCLUSO TRANSPORTE VERTICAL. AF_12/2015 | D58: m² | E58: 21.72 | F58: 63.3 | G58: =F58*(1+($H$3)) -> 79.13 | H58: =ROUND(E58*G58,2) -> 1718.7
A59: 2.9.3 | B59: 94213 | C59: TELHAMENTO COM TELHA DE AÇO/ALUMÍNIO E = 0,5 MM, COM ATÉ 2 ÁGUAS, INCLUSO IÇAMENTO. AF_06/2016 | D59: m² | E59: 21.72 | F59: 72.59 | G59: =F59*(1+($H$3)) -> 90.74 | H59: =ROUND(E59*G59,2) -> 1970.87
A60: 2.10 | C60: ESQUADRIAS E VIDROS | H60: =SUM(H61:H62) -> 2153.46
A61: 2.10.1 | B61: 100701 | C61: PORTA DE FERRO TIPO VENEZIANA, DE ABRIR, SEM BANDEIRA SEM FERRAGENS | D61: m² | E61: 1.89 | F61: 446.11 | G61: =F61*(1+($H$3)) -> 557.64 | H61: =ROUND(E61*G61,2) -> 1053.94
A62: 2.10.2 | B62: 94570 | C62: JANELA DE ALUMÍNIO DE CORRER, 2 FOLHAS, FIXAÇÃO COM PARAFUSO SOBRE CONTRAMARCO (EXCLUSIVE CONTRAMARCO), COM VIDROS PADRONIZADA. AF_07/2016 | D62: m² | E62: 4 | F62: 219.9 | G62: =F62*(1+($H$3)) -> 274.88 | H62: 1099.52
A64: 3.0 | C64: SUB - ESTAÇÃO AÉREA DE 112,5 KVA (SERVIÇO) | H64: =H65 -> 4110.05
A65: 3.1 | B65: CPU 010 | C65: SUB-ESTAÇÃO AÉREA DE 112,5KVA (SERVIÇO) | D65: unid. | E65: 1 | F65: =CPU!I150 -> 3288.04 | G65: =F65*(1+($H$3)) -> 4110.05 | H65: =ROUND(E65*G65,2) -> 4110.05
A67: 4.0 | C67: APOIO ADMISTRATIVO / VESTIÁRIO / BANHEIROS | H67: =H68+H70+H76+H85+H111+H117+H97+H115+H103+H107+H122+H126+H130+H133+H95 -> 467682.36
A68: 4.1 | C68: LOCAÇÃO DA OBRA | H68: =SUM(H69) -> 1819.69
A69: 4.1.1 | B69: 50/ORSE | C69: LOCAÇÃO DE CONSTRUÇÃO DE EDIFICAÇÃO ATÉ 200M², INCLUSIVE EXECUÇÃO DE GABARITO | D69: m² | E69: 153.69 | F69: 9.47 | G69: =F69*(1+($H$3)) -> 11.84 | H69: =ROUND(E69*G69,2) -> 1819.69
A70: 4.2 | C70: MOVIMENTO DE TERRA | H70: =SUM(H71:H75) -> 12767.3
A71: 4.2.1 | B71: 09897/ORSE | C71: LIMPEZA SUPERFICIAL DA CAMADA VEGETAL EM JAZIDA | D71: m² | E71: 232.22 | F71: 1.78 | G71: =F71*(1+($H$3)) -> 2.23 | H71: =ROUND(E71*G71,2) -> 517.85
A72: 4.2.2 | B72: 96526 | C72: ESCAVAÇÃO MANUAL DE VALA PARA VIGA BALDRAME, COM PREVISÃO DE FÔRMA. AF_06/2017 | D72: m³ | E72: 24.96 | F72: 326.74 | G72: =F72*(1+($H$3)) -> 408.43 | H72: =ROUND(E72*G72,2) -> 10194.41
A73: 4.2.3 | B73: 93382 | C73: REATERRO MANUAL DE VALAS, COM COMPACTADOR DE SOLOS DE PERCUSSÃO. AF_08/2023 | D73: m³ | E73: 24.96 | F73: 27.69 | G73: =F73*(1+($H$3)) -> 34.61 | H73: =ROUND(E73*G73,2) -> 863.87
A74: 4.2.4 | B74: 96385 | C74: EXECUÇÃO E COMPACTAÇÃO DE ATERRO COM SOLO PREDOMINANTEMENTE ARGILOSO - EXCLUSIVE ESCAVAÇÃO, CARGA E TRANSPORTE E SOLO. AF_09/2017 | D74: m³ | E74: 60.16 | F74: 13 | G74: =F74*(1+($H$3)) -> 16.25 | H74: =ROUND(E74*G74,2) -> 977.6
A75: 4.2.5 | B75: 100945 | C75: TRANSPORTE COMERCIAL COM CAMINHAO CARROCERIA 9 T, RODOVIA EM LEITO NATURAL | D75: TxKM | E75: 60.16 | F75: 2.84 | G75: =F75*(1+($H$3)) -> 3.55 | H75: =ROUND(E75*G75,2) -> 213.57
A76: 4.3 | C76: INFRA-ESTRUTURA / FUNDAÇÕES | H76: =SUM(H77:H84) -> 17408.66
A77: 4.3.1 | B77: 96543 | C77: ARMAÇÃO DE BLOCO, VIGA BALDRAME E SAPATA UTILIZANDO AÇO CA-60 DE 5 MM - MONTAGEM. AF_06/2017 | D77: kg | E77: 77 | F77: 18.49 | G77: =F77*(1+($H$3)) -> 23.11 | H77: =ROUND(E77*G77,2) -> 1779.47
A78: 4.3.2 | B78: 96544 | C78: ARMAÇÃO DE BLOCO, VIGA BALDRAME OU SAPATA UTILIZANDO AÇO CA-50 DE 6,3 KG CR 9,62 MM - MONTAGEM. AF_06/2017 | D78: kg | E78: 1 | F78: 16.71 | G78: 20.89 | H78: 20.89
A79: 4.3.3 | B79: 96545 | C79: ARMAÇÃO DE BLOCO, VIGA BALDRAME OU SAPATA UTILIZANDO AÇO CA-50 DE 8 MM - MONTAGEM. AF_06/2017 | D79: kg | E79: 7 | F79: 15.16 | G79: 18.95 | H79: 132.65
A80: 4.3.4 | B80: 96546 | C80: ARMAÇÃO DE BLOCO, VIGA BALDRAME OU SAPATA UTILIZANDO AÇO CA-50 DE 10 MM - MONTAGEM. AF_06/2017 | D80: kg | E80: 566 | F80: 13.32 | G80: 16.65 | H80: 9423.9
A81: 4.3.5 | B81: 96547 | C81: ARMAÇÃO DE BLOCO, VIGA BALDRAME OU SAPATA UTILIZANDO AÇO CA-50 DE 12,5 MM - MONTAGEM. AF_06/2017 | D81: kg | E81: 3 | F81: 11.15 | G81: 13.94 | H81: 41.82
A82: 4.3.6 | B82: 97086 | C82: FABRICAÇÃO, MONTAGEM E DESMONTAGEM DE FORMA PARA RADIER, EM MADEIRA SERRADA, 4 UTILIZAÇÕES. AF_09/2017 | D82: m² | E82: 15.1 | F82: 135.45 | G82: 169.31 | H82: 2556.58
A83: 4.3.7 | B83: 11488/ORSE | C83: LANCAMENTO/APLICACAO MANUAL DE CONCRETO EM FUNDACOES | D83: m³ | E83: 5 | F83: 27.98 | G83: 34.98 | H83: 174.9
A84: 4.3.8 | B84: 94971 | C84: CONCRETO FCK = 25MPA, TRAÇO 1:2,3:2,7 (CIMENTO/ AREIA MÉDIA/ BRITA 1) - PREPARO MECÂNICO COM BETONEIRA 600 L. AF_07/2016 | D84: m³ | E84: 5 | F84: 524.55 | G84: 655.69 | H84: 3278.45
A85: 4.4 | C85: SUPERESTRUTURA | H85: =SUM(H86:H94) -> 112397.15
A86: 4.4.1 | B86: 101792 | C86: ESCORAMENTO FORMAS H=3,50 A 4,00 M, COM MADEIRA DE 3A QUALIDADE, NAO APARELHADA, APROVEITAMENTO TABUAS 3X E PRUMOS 4X. | D86: m³ | E86: 9.9 | F86: 18.35 | G86: =F86*(1+($H$3)) -> 22.94 | H86: =ROUND(E86*G86,2) -> 227.11
A87: 4.4.2 | B87: 92759 | C87: ARMAÇÃO DE PILAR OU VIGA DE UMA ESTRUTURA CONVENCIONAL DE CONCRETO ARMADO EM UM EDIFÍCIO DE MÚLTIPLOS PAVIMENTOS UTILIZANDO AÇO CA-60 DE 5,0 MM - MONTAGEM. AF_12/2015 | D87: kg | E87: 661 | F87: 14.65 | G87: 18.31 | H87: =ROUND(E87*G87,2) -> 12102.91
A88: 4.4.3 | B88: 92761 | C88: ARMAÇÃO DE PILAR OU VIGA DE UMA ESTRUTURA CONVENCIONAL DE CONCRETO ARMADO EM UM EDIFÍCIO DE MÚLTIPLOS PAVIMENTOS UTILIZANDO AÇO CA-50 DE 8,0MM - MONTAGEM. AF_12/2015 | D88: kg | E88: 35 | F88: 12.75 | G88: 15.94 | H88: 557.9
A89: 4.4.4 | B89: 92762 | C89: ARMAÇÃO DE PILAR OU VIGA DE UMA ESTRUTURA CONVENCIONAL DE CONCRETO ARMADO EM UM EDIFÍCIO DE MÚLTIPLOS PAVIMENTOS UTILIZANDO AÇO CA-50 DE 10,0 MM - MONTAGEM. AF_12/2015 | D89: kg | E89: 1792 | F89: 11.33 | G89: 14.16 | H89: 25374.72
A90: 4.4.5 | B90: 92763 | C90: ARMAÇÃO DE PILAR OU VIGA DE UMA ESTRUTURA CONVENCIONAL DE CONCRETO ARMADO EM UM EDIFÍCIO DE MÚLTIPLOS PAVIMENTOS UTILIZANDO AÇO CA-50 DE 12,5 MM - MONTAGEM. AF_12/2015 | D90: kg | E90: 409 | F90: 9.5 | G90: 11.88 | H90: =ROUND(E90*G90,2) -> 4858.92
A91: 4.4.6 | B91: 92264 | C91: FABRICAÇÃO DE FÔRMA PARA PILARES E ESTRUTURAS SIMILARES, EM CHAPA DE MADEIRA COMPENSADA PLASTIFICADA, E = 18 MM. AF_12/2015 | D91: m² | E91: 62.7 | F91: 211.39 | G91: 264.24 | H91: 16567.85
A92: 4.4.7 | B92: 92266 | C92: FABRICAÇÃO DE FÔRMA PARA VIGAS, EM CHAPA DE MADEIRA COMPENSADA PLASTIFICADA, E = 18 MM. AF_12/2015 | D92: m² | E92: 184.9 | F92: 157.4 | G92: 196.75 | H92: 36379.08
A93: 4.4.8 | B93: 103669 | C93: CONCRETAGEM DE PILARES, FCK = 25 MPA, COM USO DE BALDES EM EDIFICAÇÃO COM SEÇÃO MÉDIA DE PILARES MENOR OU IGUAL A 0,25 M² - LANÇAMENTO, ADENSAMENTO E ACABAMENTO. AF_12/2015 | D93: m³ | E93: 3.2 | F93: 961.83 | G93: 1202.29 | H93: 3847.33
A94: 4.4.9 | B94: 103682 | C94: CONCRETAGEM DE VIGAS E LAJES, FCK=25 MPA, PARA QUALQUER TIPO DE LAJE COM BALDES EM EDIFICAÇÃO TÉRREA, COM ÁREA MÉDIA DE LAJES MENOR OU IGUAL A 20 M² - LANÇAMENTO, ADENSAMENTO E ACABAMENTO. AF_12/2015 | D94: m³ | E94: 10.2 | F94: 978.93 | G94: 1223.66 | H94: 12481.33
A95: 4.5 | C95: ALVENARIA / DIVISÓRIAS | H95: =H96 -> 44422.17
A96: 4.5.1 | B96: 103351 | C96: (COMPOSIÇÃO REPRESENTATIVA) DO SERVIÇO DE ALVENARIA DE VEDAÇÃO DE BLOCOS VAZADOS DE CERÂMICA DE 9X19X19CM (ESPESSURA 9CM), PARA EDIFICAÇÃO HABITACIONAL UNIFAMILIAR (CASA) E EDIFICAÇÃO PÚBLICA PADRÃO. AF_11/2014 | D96: m² | E96: 195.96 | F96: 181.35 | G96: =F96*(1+($H$3)) -> 226.69 | H96: 44422.17
A97: 4.6 | C97: REVESTIMENTOS | H97: =SUM(H98:H102) -> 49493.72
A98: 4.6.1 | B98: 87879 | C98: CHAPISCO APLICADO EM ALVENARIAS E ESTRUTURAS DE CONCRETO INTERNAS, COM COLHER DE PEDREIRO. ARGAMASSA TRAÇO 1:3 COM PREPARO EM BETONEIRA 400L. AF_06/2014 | D98: m² | E98: 422.9 | F98: 4.78 | G98: =F98*(1+($H$3)) -> 5.98 | H98: =ROUND(E98*G98,2) -> 2528.94
A99: 4.6.2 | B99: 87894 | C99: CHAPISCO APLICADO EM ALVENARIA (SEM PRESENÇA DE VÃOS) E ESTRUTURAS DE CONCRETO DE FACHADA, COM COLHER DE PEDREIRO. ARGAMASSA TRAÇO 1:3 COM PREPARO EM BETONEIRA 400L. AF_06/2014 | D99: m² | E99: 228.63 | F99: 7.41 | G99: =F99*(1+($H$3)) -> 9.26 | H99: =ROUND(E99*G99,2) -> 2117.11
A100: 4.6.3 | B100: 87531 | C100: EMBOÇO, PARA RECEBIMENTO DE CERÂMICA, EM ARGAMASSA TRAÇO 1:2:8, PREPARO MECÂNICO COM BETONEIRA 400L, APLICADO MANUALMENTE EM FACES INTERNAS DE PAREDES, PARA AMBIENTE COM ÁREA ENTRE 5M2 E 10M2, ESPESSURA DE 20MM, COM EXECUÇÃO DE TALISCAS. AF_06/2014 | D100: m² | E100: 291.9 | F100: 41.76 | G100: =F100*(1+($H$3)) -> 52.2 | H100: =ROUND(E100*G100,2) -> 15237.18
A101: 4.6.4 | B101: 87529 | C101: MASSA ÚNICA, PARA RECEBIMENTO DE PINTURA, EM ARGAMASSA TRAÇO 1:2:8, PREPARO MECÂNICO COM BETONEIRA 400L, APLICADA MANUALMENTE EM FACES INTERNAS DE PAREDES, ESPESSURA DE 20MM, COM EXECUÇÃO DE TALISCAS. AF_06/2014 | D101: m² | E101: 120.4 | F101: 43.27 | G101: =F101*(1+($H$3)) -> 54.09 | H101: =ROUND(E101*G101,2) -> 6512.44
A102: 4.6.5 | B102: 87273 | C102: REVESTIMENTO CERÂMICO PARA PAREDES INTERNAS COM PLACAS TIPO ESMALTADA EXTRA DE DIMENSÕES 33X45 CM APLICADAS EM AMBIENTES DE ÁREA MAIOR QUE 5 M² NA ALTURA INTEIRA DAS PAREDES. AF_06/2014 | D102: m² | E102: 291.9 | F102: 63.3 | G102: =F102*(1+($H$3)) -> 79.13 | H102: =ROUND(E102*G102,2) -> 23098.05
A103: 4.7 | C103: PINTURA E EMASSAMENTO INTERNO | H103: =SUM(H104:H106) -> 6780.92
A104: 4.7.1 | B104: CPU 006 | C104: EMASSAMENTO COM MASSA A OLEO, UMA DEMAO | D104: m² | E104: 120.4 | F104: =CPU!I94 -> 29.85 | G104: =F104*(1+($H$3)) -> 37.31 | H104: =ROUND(E104*G104,2) -> 4492.12
A105: 4.7.2 | B105: 88411 | C105: APLICAÇÃO MANUAL DE FUNDO SELADOR ACRÍLICO EM PANOS COM PRESENÇA DE VÃOS DE EDIFÍCIOS DE MÚLTIPLOS PAVIMENTOS. AF_06/2014P | D105: m² | E105: 120.4 | F105: 3.16 | G105: =F105*(1+($H$3)) -> 3.95 | H105: =ROUND(E105*G105,2) -> 475.58
A106: 4.7.3 | B106: 88489 | C106: APLICAÇÃO MANUAL DE PINTURA COM TINTA LÁTEX ACRÍLICA EM PAREDES, DUAS DEMÃOS. AF_06/2014 | D106: m² | E106: 120.4 | F106: 12.05 | G106: =F106*(1+($H$3)) -> 15.06 | H106: =ROUND(E106*G106,2) -> 1813.22
A107: 4.8 | C107: PINTURA E EMASSAMENTO EXTERNO | H107: =SUM(H108:H110) -> 17231.94
A108: 4.8.1 | B108: CPU 006 | C108: EMASSAMENTO COM MASSA A OLEO, UMA DEMAO | D108: m² | E108: 239.1 | F108: =CPU!I94 -> 29.85 | G108: =F108*(1+($H$3)) -> 37.31 | H108: =ROUND(E108*G108,2) -> 8920.82
A109: 4.8.2 | B109: 88411 | C109: APLICAÇÃO MANUAL DE FUNDO SELADOR ACRÍLICO EM PANOS COM PRESENÇA DE VÃOS DE EDIFÍCIOS DE MÚLTIPLOS PAVIMENTOS. AF_06/2014P | D109: m² | E109: 239.1 | F109: 3.16 | G109: =F109*(1+($H$3)) -> 3.95 | H109: =ROUND(E109*G109,2) -> 944.45
A110: 4.8.3 | B110: 95624 | C110: APLICAÇÃO MANUAL DE TINTA LÁTEX ACRÍLICA EM SUPERFÍCIES EXTERNAS DE SACADA DE EDIFÍCIOS DE MÚLTIPLOS PAVIMENTOS, DUAS DEMÃOS. AF_11/2016 | D110: m² | E110: 239.1 | F110: 24.65 | G110: =F110*(1+($H$3)) -> 30.81 | H110: =ROUND(E110*G110,2) -> 7366.67
A111: 4.9 | C111: COBERTURAS E IMPERMEABILIZAÇÕES | H111: =SUM(H112:H114) -> 31663.54
A112: 4.9.1 | B112: 92255 | C112: INSTALAÇÃO DE TESOURA (INTEIRA OU MEIA), EM AÇO, PARA VÃOS MAIORES OU IGUAIS A 3,0 M E MENORES QUE 6,0 M, INCLUSO IÇAMENTO. AF_12/2015 | D112: UNID | E112: 7 | F112: 240.88 | G112: =F112*(1+($H$3)) -> 301.1 | H112: 2107.7
A113: 4.9.2 | B113: 92580 | C113: TRAMA DE AÇO COMPOSTA POR TERÇAS PARA TELHADOS DE ATÉ 2 ÁGUAS PARA TELHA ONDULADA DE FIBROCIMENTO, METÁLICA, PLÁSTICA OU TERMOACÚSTICA, INCLUSO TRANSPORTE VERTICAL. AF_12/2015 | D113: m² | E113: 153.5 | F113: 63.3 | G113: =F113*(1+($H$3)) -> 79.13 | H113: 12146.46
A114: 4.9.3 | B114: 94213 | C114: TELHAMENTO COM TELHA DE AÇO/ALUMÍNIO E = 0,5 MM, COM ATÉ 2 ÁGUAS, INCLUSO IÇAMENTO. AF_06/2016 | D114: m² | E114: 191.86 | F114: 72.59 | G114: =F114*(1+($H$3)) -> 90.74 | H114: =ROUND(E114*G114,2) -> 17409.38
A115: 4.10 | C115: FORRO | H115: =SUM(H116) -> 16849.75
A116: 4.10.1 | B116: 96486 | C116: FORRO DE PVC, LISO, PARA AMBIENTES COMERCIAIS, INCLUSIVE ESTRUTURA DE FIXAÇÃO. AF_05/2017_P | D116: m² | E116: 142.12 | F116: 94.85 | G116: =F116*(1+($H$3)) -> 118.56 | H116: =ROUND(E116*G116,2) -> 16849.75
A117: 4.11 | C117: ESQUADRIAS E VIDROS | H117: =SUM(H118:H121) -> 18489.35
A118: 4.11.1 | B118: 05079/ORSE | C118: PORTA EM PVC SANFONADA, INSTALADA | D118: m² | E118: 15.12 | F118: 130.25 | G118: =F118*(1+($H$3)) -> 162.81 | H118: =ROUND(E118*G118,2) -> 2461.69
A119: 4.11.2 | B119: 94570 | C119: JANELA DE ALUMÍNIO DE CORRER, 2 FOLHAS, FIXAÇÃO COM PARAFUSO SOBRE CONTRAMARCO (EXCLUSIVE CONTRAMARCO), COM VIDROS PADRONIZADA. AF_07/2016 | D119: m² | E119: 19.99 | F119: 219.9 | G119: =F119*(1+($H$3)) -> 274.88 | H119: 5494.85
A120: 4.11.3 | B120: 91333 | C120: KIT DE PORTA DE MADEIRA FRISADA, SEMI-OCA (LEVE OU MÉDIA), PADRÃO POPULAR, 80X210CM, ESPESSURA DE 3,5CM, ITENS INCLUSOS: DOBRADIÇAS, MONTAGEM E INSTALAÇÃO DO BATENTE, SEM FECHADURA - FORNECIMENTO E INSTALAÇÃO. AF_08/2015 | D120: UNID | E120: 2 | F120: 905.96 | G120: =F120*(1+($H$3)) -> 1132.45 | H120: 2264.9
A121: 4.11.4 | B121: 91327 | C121: KIT DE PORTA DE MADEIRA PARA VERNIZ, SEMI-OCA (LEVE OU MÉDIA), PADRÃO POPULAR, 90X210CM, ESPESSURA DE 3,5CM, ITENS INCLUSOS: DOBRADIÇAS, MONTAGEM E INSTALAÇÃO DO BATENTE, SEM FECHADURA - FORNECIMENTO E INSTALAÇÃO. AF_08/2015 | D121: UNID | E121: 7 | F121: 944.9 | G121: =F121*(1+($H$3)) -> 1181.13 | H121: 8267.91
A122: 4.12 | C122: PINTURA EM ESQUADRIAS | H122: =SUM(H123:H125) -> 4133.66
A123: 4.12.1 | B123: 2305/ORSE | C123: FUNDO SINTETICO NIVELADOR BRANCO | D123: m² | E123: 33.18 | F123: 9.02 | G123: =F123*(1+($H$3)) -> 11.28 | H123: =ROUND(E123*G123,2) -> 374.27
A124: 4.12.2 | B124: 102219 | C124: PINTURA ESMALTE ACETINADO PARA MADEIRA, DUAS DEMAOS, SOBRE FUNDO NIVELADOR BRANCO | D124: m² | E124: 33.18 | F124: 17.55 | G124: =F124*(1+($H$3)) -> 21.94 | H124: =ROUND(E124*G124,2) -> 727.97
A125: 4.12.3 | B125: 102218 | C125: PINTURA ESMALTE FOSCO, DUAS DEMAOS, SOBRE SUPERFICIE METALICA, INCLUSO UMA DEMAO DE FUNDO ANTICORROSIVO. UTILIZACAO DE REVOLVER ( AR-COMPRIMIDO). | D125: m² | E125: 142.12 | F125: 17.06 | G125: =F125*(1+($H$3)) -> 21.33 | H125: =ROUND(E125*G125,2) -> 3031.42
A126: 4.13 | C126: PISO | H126: =SUM(H127:H129) -> 30922.58
A127: 4.13.1 | B127: 95240 | C127: LASTRO DE CONCRETO MAGRO, APLICADO EM PISOS OU RADIERS, ESPESSURA DE 3CM. AF_07/2016 | D127: m² | E127: 153.5 | F127: 20.13 | G127: =F127*(1+($H$3)) -> 25.16 | H127: =ROUND(E127*G127,2) -> 3862.06
A128: 4.13.2 | B128: 87630 | C128: CONTRAPISO EM ARGAMASSA TRAÇO 1:4 (CIMENTO E AREIA), PREPARO MECÂNICO COM BETONEIRA 400 L, APLICADO EM ÁREAS SECAS SOBRE LAJE, ADERIDO, ESPESSURA 3CM. AF_06/2014 | D128: m² | E128: 153.5 | F128: 42.94 | G128: =F128*(1+($H$3)) -> 53.68 | H128: =ROUND(E128*G128,2) -> 8239.88
A129: 4.13.3 | B129: 104162 | C129: PISO EM GRANILITE, MARMORITE OU GRANITINA ESPESSURA 8 MM, INCLUSO JUNTAS DE DILATACAO PLASTICAS | D129: m² | E129: 153.5 | F129: 98.09 | G129: =F129*(1+($H$3)) -> 122.61 | H129: =ROUND(E129*G129,2) -> 18820.64
A130: 4.14 | C130: INSTALAÇÕES HIDROSSANITÁRIAS | H130: =SUM(H131:H132) -> 29180.45
A131: 4.14.1 | B131: CPU 003 | C131: SERVIÇOS DE INSTALAÇÕES PREDIAIS DE ÁGUA FRIA | D131: unid. | E131: 1 | F131: =CPU!I61 -> 13637.92 | G131: =F131*(1+($H$3)) -> 17047.4 | H131: =ROUND(E131*G131,2) -> 17047.4
A132: 4.14.2 | B132: CPU 004 | C132: INSTALAÇÕES PREDIAIS DE ESGOTO E PLUVIAIS | D132: unid. | E132: 1 | F132: =CPU!I72 -> 9706.44 | G132: =F132*(1+($H$3)) -> 12133.05 | H132: =ROUND(E132*G132,2) -> 12133.05
A133: 4.15 | C133: INSTALAÇÕES ELÉTRICAS | H133: =SUM(H134:H136) -> 74121.48
A134: 4.15.1 | B134: CPU 005 | C134: SERVIÇOS PARA EXECUÇÃO DA INSTALAÇÃO ELÉTRICA, LÓGICA E TELEFONIA. | D134: unid. | E134: 0.5 | F134: =CPU!I84 -> 96283.2 | G134: =F134*(1+($H$3)) -> 120354 | H134: =ROUND(E134*G134,2) -> 60177
A135: 4.15.2 | B135: CPU 008 | C135: POSTE DE ACO CONICO CONTINUO RETO, ENGASTADO, H=9M - FORNECIMENTO E IN UN AS 1.144,87 STALACAO | D135: unid. | E135: 4 | F135: =CPU!I126 -> 2503.67 | G135: =F135*(1+($H$3)) -> 3129.59 | H135: =ROUND(E135*G135,2) -> 12518.36
A136: 4.15.3 | B136: 101653 | C136: LUMINARIA ABERTA PARA ILUMINACAO PUBLICA, PARA LAMPADA A VAPOR DE MERCURIO ATE 400W E MISTA ATE 500W, COM BRACO EM TUBO DE ACO GALV D=50MM PROJ HOR=2.500MM E PROJ VERT= 2.200MM, FORNECIMENTO E INSTALACAO | D136: unid. | E136: 4 | F136: 285.22 | G136: =F136*(1+($H$3)) -> 356.53 | H136: =ROUND(E136*G136,2) -> 1426.12
A138: 5.0 | C138: ABATEDOURO FRIGORÍFICO | H138: =H139+H141+H147+H161+H191+H196+H176+H200+H183+H187+H202+H204+H208+H211+H174 -> 1635757
A139: 5.1 | C139: LOCAÇÃO DA OBRA | H139: =SUM(H140) -> 4961.73
A140: 5.1.1 | B140: 4176/ORSE | C140: LOCAÇÃO DE CONSTRUÇÃO DE EDIFICAÇÃO ENTRE 200 A 1000 M², INCLUSIVE EXECUÇÃO DE GABARITO DE MADEIRA | D140: m² | E140: 585.11 | F140: 6.78 | G140: =F140*(1+($H$3)) -> 8.48 | H140: =ROUND(E140*G140,2) -> 4961.73
A141: 5.2 | C141: MOVIMENTO DE TERRA | H141: =SUM(H142:H146) -> 48160.58
A142: 5.2.1 | B142: 09897/ORSE | C142: LIMPEZA SUPERFICIAL DA CAMADA VEGETAL EM JAZIDA | D142: m² | E142: 951.72 | F142: 1.78 | G142: =F142*(1+($H$3)) -> 2.23 | H142: =ROUND(E142*G142,2) -> 2122.34
A143: 5.2.2 | B143: 96526 | C143: ESCAVAÇÃO MANUAL DE VALA PARA VIGA BALDRAME, COM PREVISÃO DE FÔRMA. AF_06/2017 | D143: m³ | E143: 96.45 | F143: 326.74 | G143: =F143*(1+($H$3)) -> 408.43 | H143: =ROUND(E143*G143,2) -> 39393.07
A144: 5.2.3 | B144: 93382 | C144: REATERRO MANUAL DE VALAS, COM COMPACTADOR DE SOLOS DE PERCUSSÃO | D144: m³ | E144: 24.86 | F144: 27.69 | G144: =F144*(1+($H$3)) -> 34.61 | H144: =ROUND(E144*G144,2) -> 860.4
A145: 5.2.4 | B145: 96385 | C145: EXECUÇÃO E COMPACTAÇÃO DE ATERRO COM SOLO PREDOMINANTEMENTE ARGILOSO - EXCLUSIVE ESCAVAÇÃO, CARGA E TRANSPORTE E SOLO. AF_09/2017 | D145: m³ | E145: 292.16 | F145: 13 | G145: =F145*(1+($H$3)) -> 16.25 | H145: =ROUND(E145*G145,2) -> 4747.6
A146: 5.2.5 | B146: 100945 | C146: TRANSPORTE COMERCIAL COM CAMINHAO CARROCERIA 9 T, RODOVIA EM LEITO NATURAL | D146: TxKM | E146: 292.16 | F146: 2.84 | G146: =F146*(1+($H$3)) -> 3.55 | H146: =ROUND(E146*G146,2) -> 1037.17
A147: 5.3 | C147: INFRA-ESTRUTURA / FUNDAÇÕES | H147: =SUM(H148:H160) -> 76033.13
A148: 5.3.1 | B148: 96543 | C148: ARMAÇÃO DE BLOCO, VIGA BALDRAME E SAPATA UTILIZANDO AÇO CA-60 DE 5 MM - MONTAGEM. AF_06/2017 | D148: kg | E148: 186 | F148: 18.49 | G148: =F148*(1+($H$3)) -> 23.11 | H148: =ROUND(E148*G148,2) -> 4298.46
A149: 5.3.2 | B149: 96544 | C149: ARMAÇÃO DE BLOCO, VIGA BALDRAME OU SAPATA UTILIZANDO AÇO CA-50 DE 6,3 KG CR 9,62 MM - MONTAGEM. AF_06/2017 | D149: kg | E149: 2 | F149: 16.71 | G149: 20.89 | H149: 41.78
A150: 5.3.3 | B150: 96545 | C150: ARMAÇÃO DE BLOCO, VIGA BALDRAME OU SAPATA UTILIZANDO AÇO CA-50 DE 8 MM - MONTAGEM. AF_06/2017 | D150: kg | E150: 34 | F150: 15.16 | G150: 18.95 | H150: 644.3
A151: 5.3.4 | B151: 96546 | C151: ARMAÇÃO DE BLOCO, VIGA BALDRAME OU SAPATA UTILIZANDO AÇO CA-50 DE 10 MM - MONTAGEM. AF_06/2017 | D151: kg | E151: 1262 | F151: 13.32 | G151: 16.65 | H151: 21012.3
A152: 5.3.5 | B152: 96547 | C152: ARMAÇÃO DE BLOCO, VIGA BALDRAME OU SAPATA UTILIZANDO AÇO CA-50 DE 12,5 MM - MONTAGEM. AF_06/2017 | D152: kg | E152: 23 | F152: 11.15 | G152: 13.94 | H152: 320.62
A153: 5.3.6 | B153: 92759 | C153: ARMAÇÃO DE PILAR OU VIGA DE UMA ESTRUTURA CONVENCIONAL DE CONCRETO ARMADO EM UM EDIFÍCIO DE MÚLTIPLOS PAVIMENTOS UTILIZANDO AÇO CA-60 DE 5,0 MM - MONTAGEM. AF_12/2015 | D153: kg | E153: 479 | F153: 14.65 | G153: 18.31 | H153: 8770.49
A154: 5.3.7 | B154: 92760 | C154: ARMAÇÃO DE PILAR OU VIGA DE UMA ESTRUTURA CONVENCIONAL DE CONCRETO ARMADO EM UM EDIFÍCIO DE MÚLTIPLOS PAVIMENTOS UTILIZANDO AÇO CA-50 DE 6,3 MM - MONTAGEM. AF_12/2015 | D154: kg | E154: 45 | F154: 13.69 | G154: 17.11 | H154: 769.95
A155: 5.3.8 | B155: 92761 | C155: ARMAÇÃO DE PILAR OU VIGA DE UMA ESTRUTURA CONVENCIONAL DE CONCRETO ARMADO EM UM EDIFÍCIO DE MÚLTIPLOS PAVIMENTOS UTILIZANDO AÇO CA-50 DE 8,0MM - MONTAGEM. AF_12/2015 | D155: kg | E155: 16 | F155: 12.75 | G155: 15.94 | H155: 255.04
A156: 5.3.9 | B156: 92762 | C156: ARMAÇÃO DE PILAR OU VIGA DE UMA ESTRUTURA CONVENCIONAL DE CONCRETO ARMADO EM UM EDIFÍCIO DE MÚLTIPLOS PAVIMENTOS UTILIZANDO AÇO CA-50 DE 10,0 MM - MONTAGEM. AF_12/2015 | D156: kg | E156: 1196 | F156: 11.33 | G156: 14.16 | H156: 16935.36
A157: 5.3.10 | B157: 92763 | C157: ARMAÇÃO DE PILAR OU VIGA DE UMA ESTRUTURA CONVENCIONAL DE CONCRETO ARMADO EM UM EDIFÍCIO DE MÚLTIPLOS PAVIMENTOS UTILIZANDO AÇO CA-50 DE 12,5 MM - MONTAGEM. AF_12/2015 | D157: kg | E157: 354 | F157: 9.5 | G157: 11.88 | H157: 4205.52
A158: 5.3.11 | B158: 97086 | C158: FABRICAÇÃO, MONTAGEM E DESMONTAGEM DE FORMA PARA RADIER, EM MADEIRA SERRADA, 4 UTILIZAÇÕES. AF_09/2017 | D158: m² | E158: 43.2 | F158: 135.45 | G158: 169.31 | H158: 7314.19
A159: 5.3.12 | B159: 11488/ORSE | C159: LANCAMENTO/APLICACAO MANUAL DE CONCRETO EM FUNDACOES | D159: m³ | E159: 16.6 | F159: 27.98 | G159: 34.98 | H159: 580.67
A160: 5.3.13 | B160: 94971 | C160: CONCRETO FCK = 25MPA, TRAÇO 1:2,3:2,7 (CIMENTO/ AREIA MÉDIA/ BRITA 1) - PREPARO MECÂNICO COM BETONEIRA 600 L. AF_07/2016 | D160: m³ | E160: 16.6 | F160: 524.55 | G160: 655.69 | H160: 10884.45
A161: 5.4 | C161: SUPERESTRUTURA | H161: =SUM(H162:H173) -> 273611.57
A162: 5.4.1 | B162: 101792 | C162: ESCORAMENTO FORMAS H=3,50 A 4,00 M, COM MADEIRA DE 3A QUALIDADE, NAO APARELHADA, APROVEITAMENTO TABUAS 3X E PRUMOS 4X. | D162: m³ | E162: 9.9 | F162: 18.35 | G162: =F162*(1+($H$3)) -> 22.94 | H162: =ROUND(E162*G162,2) -> 227.11
A163: 5.4.2 | B163: 92759 | C163: ARMAÇÃO DE PILAR OU VIGA DE UMA ESTRUTURA CONVENCIONAL DE CONCRETO ARMADO EM UM EDIFÍCIO DE MÚLTIPLOS PAVIMENTOS UTILIZANDO AÇO CA-60 DE 5,0 MM - MONTAGEM. AF_12/2015 | D163: kg | E163: 238 | F163: 14.65 | G163: 18.31 | H163: =ROUND(E163*G163,2) -> 4357.78
A164: 5.4.3 | B164: 92760 | C164: ARMAÇÃO DE PILAR OU VIGA DE UMA ESTRUTURA CONVENCIONAL DE CONCRETO ARMADO EM UM EDIFÍCIO DE MÚLTIPLOS PAVIMENTOS UTILIZANDO AÇO CA-50 DE 6,3 MM - MONTAGEM. AF_12/2015 | D164: m² | E164: 33 | F164: 13.69 | G164: 17.11 | H164: =ROUND(E164*G164,2) -> 564.63
A165: 5.4.4 | B165: 92761 | C165: ARMAÇÃO DE PILAR OU VIGA DE UMA ESTRUTURA CONVENCIONAL DE CONCRETO ARMADO EM UM EDIFÍCIO DE MÚLTIPLOS PAVIMENTOS UTILIZANDO AÇO CA-50 DE 8,0MM - MONTAGEM. AF_12/2015 | D165: kg | E165: 60 | F165: 12.75 | G165: 15.94 | H165: =ROUND(E165*G165,2) -> 956.4
A166: 5.4.5 | B166: 92762 | C166: ARMAÇÃO DE PILAR OU VIGA DE UMA ESTRUTURA CONVENCIONAL DE CONCRETO ARMADO EM UM EDIFÍCIO DE MÚLTIPLOS PAVIMENTOS UTILIZANDO AÇO CA-50 DE 10,0 MM - MONTAGEM. AF_12/2015 | D166: kg | E166: 783 | F166: 11.33 | G166: 14.16 | H166: 11087.28
A167: 5.4.6 | B167: 92763 | C167: ARMAÇÃO DE PILAR OU VIGA DE UMA ESTRUTURA CONVENCIONAL DE CONCRETO ARMADO EM UM EDIFÍCIO DE MÚLTIPLOS PAVIMENTOS UTILIZANDO AÇO CA-50 DE 12,5 MM - MONTAGEM. AF_12/2015 | D167: kg | E167: 187 | F167: 9.5 | G167: 11.88 | H167: 2221.56
A168: 5.4.7 | B168: 92764 | C168: ARMAÇÃO DE PILAR OU VIGA DE UMA ESTRUTURA CONVENCIONAL DE CONCRETO ARMADO EM UM EDIFÍCIO DE MÚLTIPLOS PAVIMENTOS UTILIZANDO AÇO CA-50 DE 16,0 MM - MONTAGEM. AF_12/2015 | D168: kg | E168: 138 | F168: 9.16 | G168: 11.45 | H168: 1580.1
A169: 5.4.8 | B169: 92264 | C169: FABRICAÇÃO DE FÔRMA PARA PILARES E ESTRUTURAS SIMILARES, EM CHAPA DE MADEIRA COMPENSADA PLASTIFICADA, E = 18 MM. AF_12/2015 | D169: m² | E169: 253 | F169: 211.39 | G169: 264.24 | H169: =ROUND(E169*G169,2) -> 66852.72
A170: 5.4.9 | B170: 92266 | C170: FABRICAÇÃO DE FÔRMA PARA VIGAS, EM CHAPA DE MADEIRA COMPENSADA PLASTIFICADA, E = 18 MM. AF_12/2015 | D170: m² | E170: 585.7 | F170: 157.4 | G170: 196.75 | H170: 115236.48
A171: 5.4.10 | B171: 103669 | C171: CONCRETAGEM DE PILARES, FCK = 25 MPA, COM USO DE BALDES EM EDIFICAÇÃO COM SEÇÃO MÉDIA DE PILARES MENOR OU IGUAL A 0,25 M² - LANÇAMENTO, ADENSAMENTO E ACABAMENTO. AF_12/2015 | D171: m³ | E171: 13.7 | F171: 961.83 | G171: 1202.29 | H171: 16471.37
A172: 5.4.11 | B172: 103682 | C172: CONCRETAGEM DE VIGAS E LAJES, FCK=20 MPA, PARA QUALQUER TIPO DE LAJE COM BALDES EM EDIFICAÇÃO TÉRREA, COM ÁREA MÉDIA DE LAJES MENOR OU IGUAL A 20 M² - LANÇAMENTO, ADENSAMENTO E ACABAMENTO. AF_12/2015 | D172: m³ | E172: 41.8 | F172: 978.93 | G172: 1223.66 | H172: 51148.99
A173: 5.4.12 | B173: CPU 007 | C173: LAJE PRE-MOLDADA P / FORRO, SOBRECARGA 100 KG / M2, VAOS ATE 3,50 M / E = 8CM, C / LAJOTAS E CAP.C / CONC FCK = 20MPA, 3CM, INTER-EIXO 38CM, C / ESCORAMENTO ( REAPR.3X ) E FERRAGEM NEGATIVA | D173: m² | E173: 23.33 | F173: =CPU!I112 -> 99.69 | G173: 124.61 | H173: =G173*E173 -> 2907.15
A174: 5.5 | C174: ALVENARIA / DIVISÓRIAS | H174: =H175 -> 306934.08
A175: 5.5.1 | B175: 103351 | C175: (COMPOSIÇÃO REPRESENTATIVA) DO SERVIÇO DE ALVENARIA DE VEDAÇÃO DE BLOCOS VAZADOS DE CERÂMICA DE 9X19X19CM (ESPESSURA 9CM), PARA EDIFICAÇÃO HABITACIONAL UNIFAMILIAR (CASA) E EDIFICAÇÃO PÚBLICA PADRÃO. AF_11/2014 | D175: m² | E175: 1352.49 | F175: 181.55 | G175: =F175*(1+($H$3)) -> 226.94 | H175: =ROUND(E175*G175,2) -> 306934.08
A176: 5.6 | C176: REVESTIMENTOS | H176: =SUM(H177:H182) -> 369835.34
A177: 5.6.1 | B177: 87879 | C177: CHAPISCO APLICADO EM ALVENARIAS E ESTRUTURAS DE CONCRETO INTERNAS, COM COLHER DE PEDREIRO. ARGAMASSA TRAÇO 1:3 COM PREPARO EM BETONEIRA 400L. AF_06/2014 | D177: m² | E177: 1673.95 | F177: 4.78 | G177: =F177*(1+($H$3)) -> 5.98 | H177: =ROUND(E177*G177,2) -> 10010.22
A178: 5.6.2 | B178: 87894 | C178: CHAPISCO APLICADO EM ALVENARIA (SEM PRESENÇA DE VÃOS) E ESTRUTURAS DE CONCRETO DE FACHADA, COM COLHER DE PEDREIRO. ARGAMASSA TRAÇO 1:3 COM PREPARO EM BETONEIRA 400L. AF_06/2014 | D178: m² | E178: 1489.15 | F178: 7.41 | G178: 9.26 | H178: 13789.53
A179: 5.6.3 | B179: 87531 | C179: EMBOÇO, PARA RECEBIMENTO DE CERÂMICA, EM ARGAMASSA TRAÇO 1:2:8, PREPARO MECÂNICO COM BETONEIRA 400L, APLICADO MANUALMENTE EM FACES INTERNAS DE PAREDES, PARA AMBIENTE COM ÁREA ENTRE 5M2 E 10M2, ESPESSURA DE 20MM, COM EXECUÇÃO DE TALISCAS. AF_06/2014 | D179: m² | E179: 1384.4 | F179: 41.76 | G179: 52.2 | H179: 72265.68
A180: 5.6.4 | B180: 87529 | C180: MASSA ÚNICA, PARA RECEBIMENTO DE PINTURA, EM ARGAMASSA TRAÇO 1:2:8, PREPARO MECÂNICO COM BETONEIRA 400L, APLICADA MANUALMENTE EM FACES INTERNAS DE PAREDES, ESPESSURA DE 20MM, COM EXECUÇÃO DE TALISCAS. AF_06/2014 | D180: m² | E180: 307.5 | F180: 43.27 | G180: 54.09 | H180: 16632.68
A181: 5.6.5 | B181: 87781 | C181: EMBOÇO OU MASSA ÚNICA EM ARGAMASSA TRAÇO 1:2:8, PREPARO MANUAL, APLICADA MANUALMENTE EM PANOS DE FACHADA COM PRESENÇA DE VÃOS, ESPESSURA DE 35 MM. AF_06/2014 | D181: m² | E181: 1489.15 | F181: 79.29 | G181: 99.11 | H181: 147589.66
A182: 5.6.6 | B182: 87273 | C182: REVESTIMENTO CERÂMICO PARA PAREDES INTERNAS COM PLACAS TIPO ESMALTADA EXTRA DE DIMENSÕES 33X45 CM APLICADAS EM AMBIENTES DE ÁREA MAIOR QUE 5 M² NA ALTURA INTEIRA DAS PAREDES. AF_06/2014 | D182: m² | E182: 1384.4 | F182: 63.3 | G182: 79.13 | H182: 109547.57
A183: 5.7 | C183: PINTURA E EMASSAMENTO INTERNO | H183: =SUM(H184:H186) -> 17318.41
A184: 5.7.1 | B184: CPU 006 | C184: EMASSAMENTO COM MASSA A OLEO, UMA DEMAO | D184: m² | E184: 307.5 | F184: =CPU!I94 -> 29.85 | G184: =F184*(1+($H$3)) -> 37.31 | H184: =ROUND(E184*G184,2) -> 11472.83
A185: 5.7.2 | B185: 88411 | C185: APLICAÇÃO MANUAL DE FUNDO SELADOR ACRÍLICO EM PANOS COM PRESENÇA DE VÃOS DE EDIFÍCIOS DE MÚLTIPLOS PAVIMENTOS. AF_06/2014P | D185: m² | E185: 307.5 | F185: 3.16 | G185: =F185*(1+($H$3)) -> 3.95 | H185: =ROUND(E185*G185,2) -> 1214.63
A186: 5.7.3 | B186: 88489 | C186: APLICAÇÃO MANUAL DE PINTURA COM TINTA LÁTEX ACRÍLICA EM PAREDES, DUAS DEMÃOS. AF_06/2014 | D186: m² | E186: 307.5 | F186: 12.05 | G186: =F186*(1+($H$3)) -> 15.06 | H186: =ROUND(E186*G186,2) -> 4630.95
A187: 5.8 | C187: PINTURA E EMASSAMENTO EXTERNO | H187: =SUM(H188:H190) -> 107323.04
A188: 5.8.1 | B188: CPU 006 | C188: EMASSAMENTO COM MASSA A OLEO, UMA DEMAO | D188: m² | E188: 1489.15 | F188: =CPU!I95 -> 29.85 | G188: =F188*(1+($H$3)) -> 37.31 | H188: =ROUND(E188*G188,2) -> 55560.19
A189: 5.8.2 | B189: 88411 | C189: APLICAÇÃO MANUAL DE FUNDO SELADOR ACRÍLICO EM PANOS COM PRESENÇA DE VÃOS DE EDIFÍCIOS DE MÚLTIPLOS PAVIMENTOS. AF_06/2014P | D189: m² | E189: 1489.15 | F189: 3.16 | G189: =F189*(1+($H$3)) -> 3.95 | H189: =ROUND(E189*G189,2) -> 5882.14
A190: 5.8.3 | B190: 95624 | C190: APLICAÇÃO MANUAL DE TINTA LÁTEX ACRÍLICA EM SUPERFÍCIES EXTERNAS DE SACADA DE EDIFÍCIOS DE MÚLTIPLOS PAVIMENTOS, DUAS DEMÃOS. AF_11/2016 | D190: m² | E190: 1489.15 | F190: 24.65 | G190: =F190*(1+($H$3)) -> 30.81 | H190: =ROUND(E190*G190,2) -> 45880.71
A191: 5.9 | C191: COBERTURAS E IMPERMEABILIZAÇÕES | H191: =SUM(H192:H195) -> 120810.31
A192: 5.9.1 | B192: 92255 | C192: INSTALAÇÃO DE TESOURA (INTEIRA OU MEIA), EM AÇO, PARA VÃOS MAIORES OU IGUAIS A 3,0 M E MENORES QUE 6,0 M, INCLUSO IÇAMENTO. AF_12/2015 | D192: UNID | E192: 3 | F192: 240.88 | G192: =F192*(1+($H$3)) -> 301.1 | H192: =ROUND(E192*G192,2) -> 903.3
A193: 5.9.3 | B193: 92564 | C193: FABRICAÇÃO E INSTALAÇÃO DE TESOURA INTEIRA EM MADEIRA NÃO APARELHADA, VÃO DE 12 M, PARA TELHA ONDULADA DE FIBROCIMENTO, METÁLICA, PLÁSTICA OU TERMOACÚSTICA, INCLUSO IÇAMENTO. AF_12/2015 | D193: UNID | E193: 4 | F193: 3075.16 | G193: =F193*(1+($H$3)) -> 3843.95 | H193: =ROUND(E193*G193,2) -> 15375.8
A194: 5.9.4 | B194: 92580 | C194: TRAMA DE AÇO COMPOSTA POR TERÇAS PARA TELHADOS DE ATÉ 2 ÁGUAS PARA TELHA ONDULADA DE FIBROCIMENTO, METÁLICA, PLÁSTICA OU TERMOACÚSTICA, INCLUSO TRANSPORTE VERTICAL. AF_12/2015 | D194: m² | E194: 615.36 | F194: 63.3 | G194: =F194*(1+($H$3)) -> 79.13 | H194: =ROUND(E194*G194,2) -> 48693.44
A195: 5.9.5 | B195: 94213 | C195: TELHAMENTO COM TELHA DE AÇO/ALUMÍNIO E = 0,5 MM, COM ATÉ 2 ÁGUAS, INCLUSO IÇAMENTO. AF_06/2016 | D195: m² | E195: 615.36 | F195: 72.59 | G195: =F195*(1+($H$3)) -> 90.74 | H195: =ROUND(E195*G195,2) -> 55837.77
A196: 5.10 | C196: ESQUADRIAS E VIDROS | H196: =SUM(H197:H199) -> 32886.11
A197: 5.10.1 | B197: 100702 | C197: PORTA DE CORRER EM ALUMINIO, COM DUAS FOLHAS PARA VIDRO, INCLUSO VIDRO LISO INCOLOR, FECHADURA E PUXADOR, SEM GUARNICAO / ALIZAR / VISTA | D197: m² | E197: 20.49 | F197: 310.48 | G197: =F197*(1+($H$3)) -> 388.1 | H197: =ROUND(E197*G197,2) -> 7952.17
A198: 5.10.2 | B198: 91341 | C198: PORTA EM ALUMÍNIO DE ABRIR TIPO VENEZIANA COM GUARNIÇÃO, FIXAÇÃO COM PARAFUSOS - FORNECIMENTO E INSTALAÇÃO. AF_08/2015 | D198: m² | E198: 34.65 | F198: 436.75 | G198: =F198*(1+($H$3)) -> 545.94 | H198: 18916.82
A199: 5.10.3 | B199: 94570 | C199: JANELA DE ALUMÍNIO DE CORRER, 2 FOLHAS, FIXAÇÃO COM PARAFUSO SOBRE CONTRAMARCO (EXCLUSIVE CONTRAMARCO), COM VIDROS PADRONIZADA. AF_07/2016 | D199: m² | E199: 21.89 | F199: 219.9 | G199: =F199*(1+($H$3)) -> 274.88 | H199: 6017.12
A200: 5.11 | C200: FORRO | H200: =SUM(H201) -> 61301.45
A201: 5.11.1 | B201: 96486 | C201: FORRO DE PVC, LISO, PARA AMBIENTES COMERCIAIS, INCLUSIVE ESTRUTURA DE FIXAÇÃO. AF_05/2017_P | D201: m² | E201: 517.05 | F201: 94.85 | G201: =F201*(1+($H$3)) -> 118.56 | H201: =ROUND(E201*G201,2) -> 61301.45
A202: 5.12 | C202: PINTURA EM ESQUADRIAS | H202: =SUM(H203:H203) -> 11028.68
A203: 5.12.1 | B203: 102218 | C203: PINTURA ESMALTE FOSCO, DUAS DEMAOS, SOBRE SUPERFICIE METALICA, INCLUSO UMA DEMAO DE FUNDO ANTICORROSIVO. UTILIZACAO DE REVOLVER ( AR-COMPRIMIDO). | D203: m² | E203: 517.05 | F203: 17.06 | G203: =F203*(1+($H$3)) -> 21.33 | H203: =ROUND(E203*G203,2) -> 11028.68
A204: 5.13 | C204: PISO | H204: =SUM(H205:H207) -> 104159.72
A205: 5.13.1 | B205: 95240 | C205: LASTRO DE CONCRETO MAGRO, APLICADO EM PISOS OU RADIERS, ESPESSURA DE 3CM. AF_07/2016 | D205: m² | E205: 517.05 | F205: 20.13 | G205: =F205*(1+($H$3)) -> 25.16 | H205: =ROUND(E205*G205,2) -> 13008.98
... 425 more rows

Sheet PLAN MATERIAL
A5: ORÇAMENTO BÁSICO - MATERIAIS
A6: SINAPI-BA 08/2023 - NÃO (DESONERADO) | E6: % BDI serv. adotado: | H6: 0.25
A7: ORSE 08/2023 | E7: % BDI mater. adotado: | H7: 0.15
A8: ITEM | B8: REFERÊNCIA | C8: DESCRIÇÃO | D8: UNID | E8: QUANT. | F8: P. UNIT. S/BDI | G8: P. UNIT. C/BDI | H8: P. TOTAL
A10: 1.0 | C10: SUB - ESTAÇÃO DE 112,5 KVA (MATERIAL) | H10: =SUM(H11:H12) -> 24997.48
A11: 1.1 | B11: 7619 | C11: TRANSFORMADOR TRIFASICO DE DISTRIBUICAO, POTENCIA DE 112,5 KVA, TENSAO NOMINAL, DE 15 KV, TENSAO SECUNDARIA DE 220/127V, EM OLEO ISOLANTE TIPO MINERAL | D11: unid | E11: 1 | F11: 19646.47 | G11: =F11*(1+($H$7)) -> 22593.44 | H11: =ROUND(E11*G11,2) -> 22593.44
A12: 1.2 | B12: 41209 | C12: POSTE DE CONCRETO ARMADO DE SECAO DUPLO T, EXTENSAO DE 12,00 M, RESISTENCIA DE 600 DAN, TIPO B | D12: unid | E12: 1 | F12: 2090.47 | G12: 2404.04 | H12: 2404.04
A13: 2.0 | C13: APOIO ADMISTRATIVO / VESTIÁRIO / BANHEIROS | H13: =H14 -> 3886.34
A14: 2.1 | C14: INFRA-ESTRUTURA / FUNDAÇÕES | H14: =SUM(H15) -> 3886.34
A15: 2.1.1 | B15: 6077 | C15: ARGILA OU BARRO PARA ATERRO/REATERRO (RETIRADO NA JAZIDA, SEM TRANSPORTE) | D15: m³ | E15: 60.16 | F15: 56.17 | G15: =F15*(1+($H$7)) -> 64.6 | H15: =ROUND(E15*G15,2) -> 3886.34
A17: 3.0 | C17: MATERIAIS- (ADMINISTRAÇÃO E CURRAL) | H17: =H18+H136+H118+H126+H124 -> 126617.35
A18: 3.1 | C18: HIDROSSANITÁRIO - (ADM, ABATEDOURO, CURRAL E GERAL) | H18: =SUM(H19:H117) -> 79018.27
A19: 3.1.1 | B19: 97 | C19: ADAPTADOR PVC SOLDAVEL C/ FLANGES E ANEL DE VEDACAO P/ CAIXA D' AGUA 32MM X 1" | D19: und | E19: 22 | F19: 17.81 | G19: =F19*(1+($H$7)) -> 20.48 | H19: =ROUND(E19*G19,2) -> 450.56
A20: 3.1.2 | B20: 99 | C20: ADAPTADOR PVC SOLDAVEL C/ FLANGES E ANEL DE VEDACAO P/ CAIXA D' AGUA 50MM X 11/2" | D20: und | E20: 4 | F20: 25.19 | G20: 28.97 | H20: 115.88
A21: 3.1.3 | B21: 109 | C21: ADAPTADOR PVC SOLDAVEL CURTO C/ BOLSA E ROSCA P/ REGISTRO 40MM X 1 1/4" | D21: und | E21: 4 | F21: 3.56 | G21: 4.09 | H21: 16.36
A22: 3.1.4 | B22: 98 | C22: ADAPTADOR PVC SOLDAVEL, COM FLANGE E ANEL DE VEDACAO, 40 MM X 1 1/4", PARA CAIXA D'AGUA | D22: und | E22: 1 | F22: 29.14 | G22: 33.51 | H22: 33.51
A23: 3.1.5 | B23: 99 | C23: ADAPTADOR PVC SOLDAVEL, COM FLANGE E ANEL DE VEDACAO, 50 MM X 1 1/2", PARA CAIXA UN 33,61 D'AGUA | D23: und | E23: 1 | F23: 33.61 | G23: 38.65 | H23: 38.65
A24: 3.1.6 | B24: 20080 | C24: ADESIVO P/ PVC FRASCO C/ 175G | D24: und | E24: 6 | F24: 14.22 | G24: 16.35 | H24: 98.1
A25: 3.1.7 | B25: 377 | C25: ASSENTO SANITARIO DE PLASTICO | D25: und | E25: 8 | F25: 19.99 | G25: 22.99 | H25: 183.92
A26: 3.1.8 | B26: 828 | C26: BUCHA REDUCAO PVC SOLD CURTA P/ AGUA FRIA PRED 25MM X 20MM | D26: und | E26: 25 | F26: 0.57 | G26: 0.66 | H26: 16.5
A27: 3.1.9 | B27: 829 | C27: BUCHA REDUCAO PVC SOLD CURTA P/ AGUA FRIA PRED 32MM X 25MM | D27: und | E27: 5 | F27: 1.09 | G27: 1.25 | H27: 6.25
A28: 3.1.10 | B28: 819 | C28: BUCHA REDUCAO PVC SOLD CURTA P/ AGUA FRIA PRED 50MM X 40MM | D28: und | E28: 2 | F28: 4.09 | G28: 4.7 | H28: 9.4
A29: 3.1.11 | B29: 43981 | C29: Caixa d´água em fibra de vidro - instalada, sem estrutura de suporte cap. 15.000 litros | D29: unid | E29: 1 | F29: 6537.36 | G29: 7517.96 | H29: 7517.96
A30: 3.1.12 | B30: 11712 | C30: CAIXA SIFONADA DE PVC, DE 150 X 150 X 50MM, COM GRELHA QUADRADA BRANCA (NBR 5688) | D30: und | E30: 9 | F30: 27 | G30: 31.05 | H30: 279.45
A31: 3.1.13 | B31: 5103 | C31: CAIXA SIFONADA PVC, 100 X 100 X 50 MM, COM GRELHA REDONDA BRANCA | D31: und | E31: 9 | F31: 11.59 | G31: 13.33 | H31: 119.97
A32: 3.1.14 | B32: 11714 | C32: CAIXA SIFONADA PVC, 150 X 185 X 75 MM, COM GRELHA QUADRADA BRANCA | D32: und | E32: 2 | F32: 36.5 | G32: 41.98 | H32: 83.96
A33: 3.1.15 | B33: 3279 | C33: CAIXA INSPECAO, CONCRETO PRE MOLDADO, CIRCULAR, COM TAMPA, D = 60* CM, H= 60* CM | D33: und | E33: 22 | F33: 86.88 | G33: 99.91 | H33: 2198.02
A34: 3.1.16 | B34: 20097 | C34: CURVA DE PVC, 45 GRAUS, SERIE R, DN 100 MM, PARA ESGOTO PREDIAL | D34: und | E34: 4 | F34: 23.41 | G34: 26.92 | H34: 107.68
A35: 3.1.17 | B35: 20098 | C35: CURVA DE PVC, 45 GRAUS, SERIE R, DN 150 MM, PARA ESGOTO PREDIAL | D35: und | E35: 4 | F35: 95.68 | G35: 110.03 | H35: 440.12
A36: 3.1.18 | B36: 1858 | C36: CURVA LONGA PVC, PB, JE, 45 GRAUS, DN 100 MM, PARA REDE COLETORA ESGOTO (NBR UN 20,21 10569) | D36: und | E36: 4 | F36: 51.8 | G36: 59.57 | H36: 238.28
A37: 3.1.19 | B37: 1844 | C37: CURVA LONGA PVC, PB, JE, 45 GRAUS, DN 150 MM, PARA REDE COLETORA ESGOTO (NBR 10569) | D37: und | E37: 1 | F37: 118.64 | G37: 136.44 | H37: 136.44
A38: 3.1.20 | B38: 1957 | C38: CURVA PVC SOLD 90G P/ AGUA FRIA PREDIAL 32 MM | D38: und | E38: 2 | F38: 6.2 | G38: 7.13 | H38: 14.26
A39: 3.1.21 | B39: 38189 | C39: DUCHA METALICA DE PAREDE, ARTICULAVEL, COM BRACO/CANO, SEM DESVIADOR | D39: und | E39: 8 | F39: 158.17 | G39: 181.9 | H39: 1455.2
A40: 3.1.22 | B40: 3148 | C40: FITA VEDA ROSCA EM ROLOS 18MMX50M | D40: und | E40: 10 | F40: 11.72 | G40: 13.48 | H40: 134.8
A41: 3.1.23 | B41: 3516 | C41: JOELHO PVC SOLD 45G BB P/ ESG PREDIAL DN 40MM | D41: und | E41: 17 | F41: 2.21 | G41: 2.54 | H41: 43.18
A42: 3.1.24 | B42: 3528 | C42: JOELHO PVC SOLD 45G PB P/ ESG PREDIAL DN 100MM | D42: und | E42: 2 | F42: 8.62 | G42: 9.91 | H42: 19.82
A43: 3.1.25 | B43: 3517 | C43: JOELHO PVC SOLD 90G BB P/ ESG PREDIAL DN 40MM | D43: und | E43: 24 | F43: 1.99 | G43: 2.29 | H43: 54.96
A44: 3.1.26 | B44: 3515 | C44: JOELHO PVC SOLD 90G C/BUCHA DE LATAO 20MM X 1/2" | D44: und | E44: 88 | F44: 6.26 | G44: 7.2 | H44: 633.6
A45: 3.1.27 | B45: 3524 | C45: JOELHO PVC SOLD 90G C/BUCHA DE LATAO 25MM X 3/4" | D45: und | E45: 4 | F45: 7.74 | G45: 8.9 | H45: 35.6
A46: 3.1.28 | B46: 3529 | C46: JOELHO PVC SOLD 90G P/ AGUA FRIA PREDIAL 25 MM | D46: und | E46: 6 | F46: 0.7 | G46: 0.81 | H46: 4.86
A47: 3.1.29 | B47: 3542 | C47: JOELHO PVC SOLD 90G P/AGUA FRIA PREDIAL 20 MM | D47: und | E47: 22 | F47: 0.57 | G47: 0.66 | H47: 14.52
A48: 3.1.30 | B48: 3536 | C48: JOELHO PVC SOLD 90G P/AGUA FRIA PREDIAL 32 MM | D48: und | E48: 2 | F48: 2.33 | G48: 2.68 | H48: 5.36
A49: 3.1.31 | B49: 3540 | C49: JOELHO PVC SOLD 90G P/AGUA FRIA PREDIAL 50 MM | D49: und | E49: 4 | F49: 4.8 | G49: 5.52 | H49: 22.08
A50: 3.1.32 | B50: 3520 | C50: JOELHO PVC SOLD 90G PB P/ ESG PREDIAL DN 100MM | D50: und | E50: 12 | F50: 7.83 | G50: 9 | H50: 108
A51: 3.1.33 | B51: 3526 | C51: JOELHO PVC SOLD 90G PB P/ ESG PREDIAL DN 50MM | D51: und | E51: 15 | F51: 2.88 | G51: =F51*(1+($H$7)) -> 3.31 | H51: =ROUND(E51*G51,2) -> 49.65
A52: 3.1.34 | B52: 3535 | C52: JOELHO PVC, SOLDAVEL, 90 GRAUS, 40 MM, PARA AGUA FRIA PREDIAL | D52: und | E52: 4 | F52: 5.17 | G52: 5.95 | H52: 23.8
A53: 3.1.35 | B53: 3518 | C53: JOELHO PVC, SOLDAVEL, PB, 45 GRAUS, DN 50 MM, PARA ESGOTO PREDIAL | D53: und | E53: 10 | F53: 3.57 | G53: 4.11 | H53: 41.1
A54: 3.1.36 | B54: 3519 | C54: JOELHO PVC, SOLDAVEL, PB, 45 GRAUS, DN 75 MM, PARA ESGOTO PREDIAL | D54: und | E54: 3 | F54: 7.47 | G54: 8.59 | H54: 25.77
A55: 3.1.37 | B55: 37950 | C55: JOELHO PVC, SOLDAVEL, PB, 90 GRAUS, DN 150 MM, PARA ESGOTO PREDIAL | D55: und | E55: 7 | F55: 56.86 | G55: 65.39 | H55: 457.73
A56: 3.1.38 | B56: 3509 | C56: JOELHO PVC, SOLDAVEL, PB, 90 GRAUS, DN 75 MM, PARA ESGOTO PREDIAL | D56: und | E56: 4 | F56: 6.56 | G56: 7.54 | H56: 30.16
A57: 3.1.39 | B57: 3670 | C57: JUNCAO SIMPLES PVC P/ ESG PREDIAL DN 100X100MM | D57: und | E57: 5 | F57: 22.64 | G57: 26.04 | H57: 130.2
A58: 3.1.40 | B58: 3659 | C58: JUNCAO SIMPLES PVC P/ ESG PREDIAL DN 100X50MM | D58: und | E58: 5 | F58: 17.64 | G58: 20.29 | H58: 101.45
A59: 3.1.41 | B59: 3662 | C59: JUNCAO SIMPLES PVC P/ ESG PREDIAL DN 50X50MM | D59: und | E59: 5 | F59: 9.29 | G59: 10.68 | H59: 53.4
A60: 3.1.42 | B60: 20145 | C60: JUNCAO SIMPLES, PVC SERIE R, DN 150 X 100 MM, PARA ESGOTO PREDIAL | D60: und | E60: 2 | F60: 126.04 | G60: 144.95 | H60: 289.9
A61: 3.1.43 | B61: 20146 | C61: JUNCAO SIMPLES, PVC SERIE R, DN 150 X 150 MM, PARA ESGOTO PREDIAL | D61: und | E61: 3 | F61: 172.3 | G61: 198.15 | H61: 594.45
A62: 3.1.44 | B62: 3666 | C62: JUNCAO SIMPLES, PVC, 45 GRAUS, DN 40 X 40 MM, SERIE NORMAL PARA ESGOTO PREDIAL | D62: und | E62: 7 | F62: 3.56 | G62: 4.09 | H62: 28.63
A63: 3.1.45 | B63: 3660 | C63: JUNCAO SIMPLES, PVC, DN 100 X 75 MM, SERIE NORMAL PARA ESGOTO PREDIAL | D63: und | E63: 4 | F63: 22.8 | G63: 26.22 | H63: 104.88
A64: 3.1.46 | B64: 3659 | C64: JUNCAO SIMPLES, PVC, DN 75 X 50 MM, SERIE NORMAL PARA ESGOTO PREDIAL | D64: und | E64: 2 | F64: 17.64 | G64: 20.29 | H64: 40.58
A65: 3.1.47 | B65: 3658 | C65: JUNCAO SIMPLES, PVC, DN 75 X 75 MM, SERIE NORMAL PARA ESGOTO PREDIAL | D65: und | E65: 2 | F65: 17.6 | G65: 20.24 | H65: 40.48
A66: 3.1.48 | B66: 20269 | C66: LAVATORIO/CUBA DE EMBUTIR OVAL LOUCA BRANCA 35 X 50CM OU EQUIV SEM LADRAO - PADRAO MEDIO | D66: und | E66: 8 | F66: 89.25 | G66: 102.64 | H66: 821.12
A67: 3.1.49 | B67: 3872 | C67: LUVA DE REDUCAO SOLDAVEL, PVC, 40 MM X 32 MM, PARA AGUA FRIA PREDIAL | D67: und | E67: 5 | F67: 5.09 | G67: 5.85 | H67: 29.25
A68: 3.1.50 | B68: 3903 | C68: LUVA PVC SOLD P/AGUA FRIA PREDIAL 32 MM | D68: und | E68: 9 | F68: 1.92 | G68: 2.21 | H68: 19.89
A69: 3.1.51 | B69: 3861 | C69: LUVA PVC SOLDAVEL, 20 MM, PARA AGUA FRIA PREDIAL | D69: und | E69: 15 | F69: 0.74 | G69: 0.85 | H69: 12.75
A70: 3.1.52 | B70: 3904 | C70: LUVA PVC SOLDAVEL, 25 MM, PARA AGUA FRIA PREDIAL | D70: und | E70: 15 | F70: 0.79 | G70: 0.91 | H70: 13.65
A71: 3.1.53 | B71: 11703 | C71: PAPELEIRA DE PAREDE EM METAL CROMADO SEM TAMPA | D71: und | E71: 8 | F71: 46.06 | G71: 52.97 | H71: 423.76
A72: 3.1.54 | B72: 21102 | C72: PORTA TOALHA BANHO EM METAL CROMADO, TIPO BARRA | D72: und | E72: 6 | F72: 23.42 | G72: 26.93 | H72: 161.58
A73: 3.1.55 | B73: 11741 | C73: RALO SIFONADO PVC CILINDRICO, 100 X 40 MM, COM GRELHA REDONDA BRANCA | D73: und | E73: 11 | F73: 9.55 | G73: 10.98 | H73: 120.78
A74: 3.1.56 | B74: 20047 | C74: REDUCAO EXCENTRICA PVC NBR 10569 P/REDE COLET ESG PB JE 150 X 100MM | D74: und | E74: 1 | F74: 52.08 | G74: 59.89 | H74: 59.89
A75: 3.1.57 | B75: 20042 | C75: REDUCAO EXCENTRICA PVC P/ ESG PREDIAL DN 75 X 50MM | D75: und | E75: 15 | F75: 7.34 | G75: 8.44 | H75: 126.6
A76: 3.1.58 | B76: 6013 | C76: REGISTRO GAVETA 1" REF 1509-C - C/ CANOPLA ACAB CROMADO SIMPLES | D76: und | E76: 11 | F76: 101.6 | G76: 116.84 | H76: 1285.24
A77: 3.1.59 | B77: 6015 | C77: REGISTRO GAVETA COM ACABAMENTO E CANOPLA CROMADOS, SIMPLES, BITOLA 1 1/2 " (REF 1509) | D77: und | E77: 2 | F77: 147.65 | G77: 169.8 | H77: 339.6
A78: 3.1.60 | B78: 6014 | C78: REGISTRO GAVETA COM ACABAMENTO E CANOPLA CROMADOS, SIMPLES, BITOLA 1 1/4" (REF 1509) | D78: und | E78: 3 | F78: 141.26 | G78: 162.45 | H78: 487.35
A79: 3.1.61 | B79: 6006 | C79: REGISTRO GAVETA COM ACABAMENTO E CANOPLA CROMADOS, SIMPLES, BITOLA 1/2 " (REF 1509) | D79: und | E79: 4 | F79: 73.57 | G79: 84.61 | H79: 338.44
A80: 3.1.62 | B80: 6005 | C80: REGISTRO GAVETA COM ACABAMENTO E CANOPLA CROMADOS, SIMPLES, BITOLA 3/4 " (REF 1509) | D80: und | E80: 1 | F80: 83 | G80: 95.45 | H80: 95.45
A81: 3.1.63 | B81: 11757 | C81: SABONETEIRA DE PAREDE EM METAL CROMADO | D81: und | E81: 8 | F81: 19.19 | G81: 22.07 | H81: 176.56
A82: 3.1.64 | B82: 20083 | C82: SOLUCAO LIMPADORA FRASCO PLASTICO C/ 1000CM3 | D82: und | E82: 1 | F82: 73.48 | G82: 84.5 | H82: 84.5
A83: 3.1.65 | B83: 11688 | C83: TANQUE ACO INOXIDAVEL (ACO 304) COM ESFREGADOR E VALVULA, DE *50 X 40 X 22* CM | D83: und | E83: 2 | F83: 437.11 | G83: =F83*(1+($H$7)) -> 502.68 | H83: =ROUND(E83*G83,2) -> 1005.36
A84: 3.1.66 | B84: 7139 | C84: TE PVC SOLD 90G P/ AGUA FRIA PREDIAL 25MM | D84: und | E84: 20 | F84: 1.15 | G84: 1.32 | H84: 26.4
A85: 3.1.67 | B85: 7140 | C85: TE PVC SOLD 90G P/ AGUA FRIA PREDIAL 32MM | D85: und | E85: 4 | F85: 3.62 | G85: 4.16 | H85: 16.64
A86: 3.1.68 | B86: 7128 | C86: TE REDUCAO PVC SOLD 90G P/ AGUA FRIA PREDIAL 40 MM X 32 MM | D86: und | E86: 2 | F86: 8.33 | G86: 9.58 | H86: 19.16
A87: 3.1.69 | B87: 7097 | C87: TE SANITARIO, PVC, DN 50 X 50 MM, SERIE NORMAL, PARA ESGOTO PREDIAL | D87: und | E87: 3 | F87: 7.08 | G87: 8.14 | H87: 24.42
A88: 3.1.70 | B88: 11656 | C88: TE SANITARIO, PVC, DN 75 X 50 MM, SERIE NORMAL PARA ESGOTO PREDIAL | D88: und | E88: 1 | F88: 18.41 | G88: 21.17 | H88: 21.17
A89: 3.1.71 | B89: 11658 | C89: TE SANITARIO, PVC, DN 75 X 75 MM, SERIE NORMAL PARA ESGOTO PREDIAL | D89: und | E89: 5 | F89: 15.65 | G89: 18 | H89: 90
A90: 3.1.72 | B90: 7138 | C90: TE SOLDAVEL, PVC, 90 GRAUS, 20 MM, PARA AGUA FRIA PREDIAL (NBR 5648) | D90: und | E90: 22 | F90: 1.02 | G90: 1.17 | H90: 25.74
A91: 3.1.73 | B91: 7141 | C91: TE SOLDAVEL, PVC, 90 GRAUS, 40 MM, PARA AGUA FRIA PREDIAL (NBR 5648) | D91: und | E91: 6 | F91: 8.86 | G91: 10.19 | H91: 61.14
A92: 3.1.74 | B92: 13984 | C92: TORNEIRA CROMADA CURTA SEM BICO PARA USO GERAL 1/2 " OU 3/4 " (REF 1152) | D92: und | E92: 2 | F92: 66.21 | G92: 76.14 | H92: 152.28
A93: 3.1.75 | B93: 36796 | C93: TORNEIRA CROMADA DE MESA PARA LAVATORIO TEMPORIZADA PRESSAO BICA BAIXA | D93: und | E93: 8 | F93: 134.51 | G93: 154.69 | H93: 1237.52
A94: 3.1.76 | B94: 11773 | C94: TORNEIRA CROMADA DE PAREDE PARA COZINHA BICA MOVEL COM AREJADOR 1/2 " OU 3/4 " (REF 1168) | D94: und | E94: 1 | F94: 113.43 | G94: 130.44 | H94: 130.44
A95: 3.1.77 | B95: 11829 | C95: TORNEIRA METALICA DE BOIA CONVENCIONAL PARA CAIXA D'AGUA, 1/2", COM HASTE METALICA E BALAO PLASTICO | D95: und | E95: 4 | F95: 27.09 | G95: 31.15 | H95: 124.6
A96: 3.1.78 | B96: 11830 | C96: TORNEIRA METALICA DE BOIA CONVENCIONAL PARA CAIXA D'AGUA, 3/4", COM HASTE METALICA E BALAO PLASTICO | D96: und | E96: 16 | F96: 29.26 | G96: 33.65 | H96: 538.4
A97: 3.1.79 | B97: 9867 | C97: TUBO DE PVC SOLDAVEL, DN = 20 MM (NBR-5648) | D97: m | E97: 140 | F97: 3.53 | G97: 4.06 | H97: 568.4
A98: 3.1.80 | B98: 38033 | C98: TUBO PVC CORRUGADO, PAREDE DUPLA, JE, DN 200 MM, REDE COLETORA ESGOTO | D98: m | E98: 39 | F98: 94.37 | G98: 108.53 | H98: 4232.67
A99: 3.1.81 | B99: 9836 | C99: TUBO PVC SERIE NORMAL - ESGOTO PREDIAL DN 100MM - NBR 5688 | D99: m | E99: 80.4 | F99: 14.05 | G99: 16.16 | H99: 1299.26
A100: 3.1.82 | B100: 9835 | C100: TUBO PVC SERIE NORMAL - ESGOTO PREDIAL DN 40MM - NBR 5688 | D100: m | E100: 29.4 | F100: 6.14 | G100: 7.06 | H100: 207.56
A101: 3.1.83 | B101: 9838 | C101: TUBO PVC SERIE NORMAL - ESGOTO PREDIAL DN 50MM - NBR 5688 | D101: m | E101: 39.6 | F101: 10.14 | G101: 11.66 | H101: 461.74
A102: 3.1.84 | B102: 20065 | C102: TUBO PVC SERIE NORMAL, DN 150 MM, PARA ESGOTO PREDIAL (NBR 5688) | D102: m | E102: 162 | F102: 36.72 | G102: 42.23 | H102: 6841.26
A103: 3.1.85 | B103: 9837 | C103: TUBO PVC SERIE NORMAL, DN 75 MM, PARA ESGOTO PREDIAL (NBR 5688) | D103: m | E103: 14.4 | F103: 13.3 | G103: 15.3 | H103: 220.32
A104: 3.1.86 | B104: 9868 | C104: TUBO PVC SOLDAVEL EB-892 P/AGUA FRIA PREDIAL DN 25MM | D104: m | E104: 145 | F104: 3.99 | G104: 4.59 | H104: 665.55
A105: 3.1.87 | B105: 9869 | C105: TUBO PVC SOLDAVEL EB-892 P/AGUA FRIA PREDIAL DN 32MM | D105: m | E105: 110 | F105: 8.61 | G105: 9.9 | H105: 1089
A106: 3.1.88 | B106: 9874 | C106: TUBO PVC SOLDAVEL EB-892 P/AGUA FRIA PREDIAL DN 40MM | D106: m | E106: 26 | F106: 13.52 | G106: 15.55 | H106: 404.3
A107: 3.1.89 | B107: 9875 | C107: TUBO PVC SOLDAVEL EB-892 P/AGUA FRIA PREDIAL DN 50MM | D107: m | E107: 130 | F107: 14.83 | G107: 17.05 | H107: 2216.5
A108: 3.1.90 | B108: 10422 | C108: VASO SANITARIO SIFONADO C/CAIXA ACOPLADA LOUCA BRANCA - PADRAO MEDIO | D108: und | E108: 8 | F108: 354.6 | G108: 407.79 | H108: 3262.32
A109: 3.1.91 | B109: 6138 | C109: VEDACAO PVC, 100 MM, PARA SAIDA VASO SANITARIO | D109: und | E109: 8 | F109: 9.17 | G109: 10.55 | H109: 84.4
A110: 3.1.92 | B110: cotação | C110: Grelha (0,4x0,4)m grelha 400x400 mm so grelha | D110: und | E110: 3 | F110: 930 | G110: 1069.5 | H110: 3208.5
A111: 3.1.93 | B111: cotação | C111: Grelha (0,6x0,3)m grelha 600 x 300 mm so grelha | D111: und | E111: 1 | F111: 1040 | G111: 1196 | H111: 1196
A112: 3.1.94 | B112: cotação | C112: Grelha (1,65x0,3)m grelha 1600 x 300 mm so grelha | D112: und | E112: 2 | F112: 2590 | G112: 2978.5 | H112: 5957
A113: 3.1.95 | B113: cotação | C113: Grelha (20,572x0,3)m grelha 2050 x 300 mm so grelha | D113: und | E113: 1 | F113: 3318.43 | G113: 3816.19 | H113: 3816.19
A114: 3.1.96 | B114: cotação | C114: Grelha (22,4x0,3)m grelha 2240 x 300 mm so grelha | D114: und | E114: 1 | F114: 3626 | G114: 4169.9 | H114: 4169.9
A115: 3.1.97 | B115: cotação | C115: Grelha (2x0,2)m grelha de 2000 x 200 mm so grelha | D115: und | E115: 1 | F115: 3237.5 | G115: =F115*(1+($H$7)) -> 3723.13 | H115: =ROUND(E115*G115,2) -> 3723.13
A116: 3.1.98 | B116: cotação | C116: Grelha (4,499x0,3)m grelha de 4990 x 300 mm so grelha | D116: und | E116: 1 | F116: 7282.75 | G116: 8375.16 | H116: 8375.16
A117: 3.1.99 | B117: cotação | C117: Grelha (5,3x0,3)m grelha 5300 mm x 300 mm so grelha | D117: und | E117: 1 | F117: 2000 | G117: 2300 | H117: 2300
A118: 3.2 | C118: INSTALAÇÕES HIDRÁULICAS AGUA QUENTE | H118: =SUM(H119:H123) -> 660.12
A119: 3.2.1 | B119: 37956 | C119: JOELHO CPVC, SOLDAVEL, 90 GRAUS, 22 MM, PARA AGUA QUENTE | D119: und | E119: 5 | F119: 3.93 | G119: =F119*(1+($H$7)) -> 4.52 | H119: =ROUND(E119*G119,2) -> 22.6
A120: 3.2.2 | B120: 1230/ORSE | C120: JOELHO DE REDUCAO, PVC, ROSCAVEL COM BUCHA DE LATAO, 90 GRAUS, 3/4" X 1/2", PARA AGUA FRIA PREDIAL | D120: und | E120: 6 | F120: 5.48 | G120: =F120*(1+($H$7)) -> 6.3 | H120: =ROUND(E120*G120,2) -> 37.8
A121: 3.2.3 | B121: 37974 | C121: LUVA CPVC, SOLDAVEL, 22 MM, PARA AGUA QUENTE PREDIAL | D121: und | E121: 4 | F121: 2.18 | G121: =F121*(1+($H$7)) -> 2.51 | H121: =ROUND(E121*G121,2) -> 10.04
A122: 3.2.4 | B122: 38010 | C122: TE CPVC, SOLDAVEL, 90 GRAUS, 22 MM, PARA AGUA QUENTE PREDIAL | D122: und | E122: 5 | F122: 3.13 | G122: =F122*(1+($H$7)) -> 3.6 | H122: =ROUND(E122*G122,2) -> 18
A123: 3.2.5 | B123: 21124 | C123: TUBO CPVC, SOLDAVEL, 22 MM, AGUA QUENTE PREDIAL (NBR 15884) | D123: m | E123: 36 | F123: 13.81 | G123: =F123*(1+($H$7)) -> 15.88 | H123: =ROUND(E123*G123,2) -> 571.68
A124: 3.3 | C124: MEDIDOR DE VAZÃO | H124: =SUM(H125:H125) -> 997.05
A125: 3.3.2 | B125: 9529/ORSE | C125: CALHA PARSHALL - Modelo: LTS CP 1”; | D125: und | E125: 1 | F125: 867 | G125: =F125*(1+($H$7)) -> 997.05 | H125: =ROUND(E125*G125,2) -> 997.05
A126: 3.4 | C126: INTERLIGAÇÃO COM ADUTORA EXISTENTE | H126: =SUM(H127:H135) -> 11591.81
A127: 3.4.1 | B127: 05709/ORSE | C127: Tê em fofo c/ bolsas, je, d= 200 x 200mm | D127: und | E127: 1 | F127: 907.02 | G127: =F127*(1+($H$7)) -> 1043.07 | H127: =ROUND(E127*G127,2) -> 1043.07
A128: 3.4.2 | B128: 3844 | C128: Luva de correr defofo, pvc, je, dn 200 mm | D128: und | E128: 1 | F128: 144.63 | G128: 166.32 | H128: 166.32
A129: 3.4.3 | B129: 03263/ORSE | C129: Redução Ponta e Bolsa, Junta elástica, Classe de Pressão PN10, d=200x150MM | D129: und | E129: 1 | F129: 189.62 | G129: 218.06 | H129: 218.06
A130: 3.4.4 | B130: 05617/ORSE | C130: Redução, em fofo, ponta / bolsa, je, d= 150 x 100mm | D130: und | E130: 1 | F130: 384.18 | G130: 441.81 | H130: 441.81
A131: 3.4.5 | B131: 05558/ORSE | C131: Redução de pvc je, ponta / bolsa, d= 100 x 75mm | D131: und | E131: 1 | F131: 27.69 | G131: 31.84 | H131: 31.84
A132: 3.4.6 | B132: 05555/ORSE | C132: Redução de pvc je, ponta / bolsa, d= 75 x 50mm | D132: und | E132: 1 | F132: 15.72 | G132: 18.08 | H132: 18.08
A133: 3.4.7 | B133: 05632/ORSE | C133: Registro gaveta fofo, c/ bolsas p/ tubo de pvc, cunha borracha, volante, pn 10, tipo euro 24, d= 50mm | D133: und | E133: 1 | F133: 437.9 | G133: 503.59 | H133: 503.59
A134: 3.4.8 | B134: 05929/ORSE | C134: Válvula controladora de vazão, com flanges, dn 50mm | D134: und | E134: 1 | F134: 7854.67 | G134: 9032.87 | H134: 9032.87
A135: 3.4.9 | B135: 11882 | C135: Caixa para registro, tipo I, para diâmetros de 50 a 100mm | D135: und | E135: 1 | F135: 118.41 | G135: 136.17 | H135: 136.17
A136: 3.5 | C136: INSTALAÇÕES ELÉTRICAS | H136: =SUM(H137:H177) -> 34350.1
A137: 3.5.1 | B137: 39209 | C137: ARRUELA EM ALUMINIO, COM ROSCA, DE 3/4", PARA ELETRODUTO | D137: und | E137: 86 | F137: 0.77 | G137: =F137*(1+($H$7)) -> 0.89 | H137: =ROUND(E137*G137,2) -> 76.54
A138: 3.5.2 | B138: 993 | C138: CABO DE COBRE, FLEXIVEL, CLASSE 4 OU 5, ISOLACAO EM PVC/A, ANTICHAMA BWF-B, COBERTURA PVC-ST1, ANTICHAMA BWF-B, 1 CONDUTOR, 0,6/1 KV, SECAO NOMINAL 1,5 MM2 (FASE) | D138: m | E138: 110 | F138: 1.68 | G138: 1.93 | H138: 212.3
A139: 3.5.3 | B139: 993 | C139: CABO DE COBRE, FLEXIVEL, CLASSE 4 OU 5, ISOLACAO EM PVC/A, ANTICHAMA BWF-B, COBERTURA PVC-ST1, ANTICHAMA BWF-B, 1 CONDUTOR, 0,6/1 KV, SECAO NOMINAL 1,5 MM2 (NEUTRO) | D139: m | E139: 190 | F139: 1.68 | G139: 1.93 | H139: 366.7
A140: 3.5.4 | B140: 993 | C140: CABO DE COBRE, FLEXIVEL, CLASSE 4 OU 5, ISOLACAO EM PVC/A, ANTICHAMA BWF-B, COBERTURA PVC-ST1, ANTICHAMA BWF-B, 1 CONDUTOR, 0,6/1 KV, SECAO NOMINAL 1,5 MM2 (RETORNO) | D140: m | E140: 200 | F140: 1.68 | G140: 1.93 | H140: 386
A141: 3.5.5 | B141: 995 | C141: CABO DE COBRE, FLEXIVEL, CLASSE 4 OU 5, ISOLACAO EM PVC/A, ANTICHAMA BWF-B, COBERTURA PVC-ST1, ANTICHAMA BWF-B, 1 CONDUTOR, 0,6/1 KV, SECAO NOMINAL 16 MM2 - (FASE) | D141: m | E141: 120 | F141: 13.64 | G141: 15.69 | H141: 1882.8
A142: 3.5.6 | B142: 995 | C142: CABO DE COBRE, FLEXIVEL, CLASSE 4 OU 5, ISOLACAO EM PVC/A, ANTICHAMA BWF-B, COBERTURA PVC-ST1, ANTICHAMA BWF-B, 1 CONDUTOR, 0,6/1 KV, SECAO NOMINAL 16 MM2 - (NEUTRO) | D142: m | E142: 120 | F142: 13.64 | G142: 15.69 | H142: 1882.8
A143: 3.5.7 | B143: 995 | C143: CABO DE COBRE, FLEXIVEL, CLASSE 4 OU 5, ISOLACAO EM PVC/A, ANTICHAMA BWF-B, COBERTURA PVC-ST1, ANTICHAMA BWF-B, 1 CONDUTOR, 0,6/1 KV, SECAO NOMINAL 16 MM2 - (TERRA) | D143: m | E143: 120 | F143: 13.64 | G143: 15.69 | H143: 1882.8
A144: 3.5.8 | B144: 1022 | C144: CABO DE COBRE, FLEXIVEL, CLASSE 4 OU 5, ISOLACAO EM PVC/A, ANTICHAMA BWF-B, COBERTURA PVC-ST1, ANTICHAMA BWF-B, 1 CONDUTOR, 0,6/1 KV, SECAO NOMINAL 2,5 MM2 - (FASE) | D144: m | E144: 420 | F144: 2.34 | G144: 2.69 | H144: 1129.8
A145: 3.5.9 | B145: 1022 | C145: CABO DE COBRE, FLEXIVEL, CLASSE 4 OU 5, ISOLACAO EM PVC/A, ANTICHAMA BWF-B, COBERTURA PVC-ST1, ANTICHAMA BWF-B, 1 CONDUTOR, 0,6/1 KV, SECAO NOMINAL 2,5 MM2 - (FASE) | D145: m | E145: 585 | F145: 2.34 | G145: 2.69 | H145: 1573.65
A146: 3.5.10 | B146: 1022 | C146: CABO DE COBRE, FLEXIVEL, CLASSE 4 OU 5, ISOLACAO EM PVC/A, ANTICHAMA BWF-B, COBERTURA PVC-ST1, ANTICHAMA BWF-B, 1 CONDUTOR, 0,6/1 KV, SECAO NOMINAL 2,5 MM2 - (RETORNO) | D146: m | E146: 400 | F146: 2.34 | G146: 2.69 | H146: 1076
A147: 3.5.11 | B147: 1022 | C147: CABO DE COBRE, FLEXIVEL, CLASSE 4 OU 5, ISOLACAO EM PVC/A, ANTICHAMA BWF-B, COBERTURA PVC-ST1, ANTICHAMA BWF-B, 1 CONDUTOR, 0,6/1 KV, SECAO NOMINAL 2,5 MM2 - (TERRA) | D147: m | E147: 300 | F147: 2.34 | G147: 2.69 | H147: 807
A148: 3.5.12 | B148: 994 | C148: CABO DE COBRE, FLEXIVEL, CLASSE 4 OU 5, ISOLACAO EM PVC/A, ANTICHAMA BWF-B, COBERTURA PVC-ST1, ANTICHAMA BWF-B, 1 CONDUTOR, 0,6/1 KV, SECAO NOMINAL 6 MM2 - (FASE) | D148: m | E148: 75 | F148: 5.22 | G148: 6 | H148: 450
A149: 3.5.13 | B149: 994 | C149: CABO DE COBRE, FLEXIVEL, CLASSE 4 OU 5, ISOLACAO EM PVC/A, ANTICHAMA BWF-B, COBERTURA PVC-ST1, ANTICHAMA BWF-B, 1 CONDUTOR, 0,6/1 KV, SECAO NOMINAL 6 MM2 - (NEUTRO) | D149: m | E149: 25 | F149: 5.22 | G149: 6 | H149: 150
A150: 3.5.14 | B150: 994 | C150: CABO DE COBRE, FLEXIVEL, CLASSE 4 OU 5, ISOLACAO EM PVC/A, ANTICHAMA BWF-B, COBERTURA PVC-ST1, ANTICHAMA BWF-B, 1 CONDUTOR, 0,6/1 KV, SECAO NOMINAL 6 MM2 - (TERRA) | D150: m | E150: 25 | F150: 5.22 | G150: 6 | H150: 150
A151: 3.5.15 | B151: 1872 | C151: CAIXA DE PASSAGEM, EM PVC, DE 4" X 2", PARA ELETRODUTO FLEXIVEL CORRUGADO | D151: unid | E151: 44 | F151: 2.1 | G151: 2.42 | H151: 106.48
A152: 3.5.16 | B152: 12001 | C152: CAIXA OCTOGONAL DE FUNDO MOVEL, EM PVC, DE 4" X 4", PARA ELETRODUTO FLEXIVEL CORRUGADO | D152: unid | E152: 60 | F152: 5.42 | G152: 6.23 | H152: 373.8
A153: 3.5.17 | B153: 39272 | C153: CURVA 90 GRAUS, CURTA, DE PVC RIGIDO ROSCAVEL, DE 3/4", PARA ELETRODUTO | D153: unid | E153: 10 | F153: 2.28 | G153: 2.62 | H153: 26.2
A154: 3.5.18 | B154: 2374 | C154: DISJUNTOR TERMOMAGNETICO TRIPOLAR 150 A / 600 V, TIPO FXD / ICC - 35 KA | D154: unid | E154: 1 | F154: 364.74 | G154: 419.45 | H154: 419.45
A155: 3.5.19 | B155: 2378 | C155: DISJUNTOR TERMOMAGNETICO TRIPOLAR 300 A / 600 V, TIPO JXD / ICC - 40 KA | D155: unid | E155: 1 | F155: 1177.49 | G155: 1354.11 | H155: 1354.11
A156: 3.5.20 | B156: 2370 | C156: DISJUNTOR TIPO NEMA, MONOPOLAR 10 ATE 30A, TENSAO MAXIMA DE 240 V | D156: unid | E156: 8 | F156: 10.87 | G156: 12.5 | H156: 100
A157: 3.5.21 | B157: 2386 | C157: DISJUNTOR TIPO NEMA, MONOPOLAR 35 ATE 50 A, TENSAO MAXIMA DE 240 V | D157: unid | E157: 1 | F157: 18.23 | G157: 20.96 | H157: 20.96
A158: 3.5.22 | B158: 39470 | C158: DISPOSITIVO DPS CLASSE II, 1 POLO, TENSAO MAXIMA DE 275 V, CORRENTE MAXIMA DE *30* KA (TIPO AC) | D158: unid | E158: 2 | F158: 80.4 | G158: 92.46 | H158: 184.92
A159: 3.5.23 | B159: 39445 | C159: DISPOSITIVO DR, 2 POLOS, SENSIBILIDADE DE 30 MA, CORRENTE DE 25 A, TIPO AC | D159: unid | E159: 1 | F159: 129.23 | G159: 148.61 | H159: 148.61
A160: 3.5.24 | B160: 2680 | C160: ELETRODUTO DE PVC RIGIDO ROSCAVEL DE 1 1/2 ", SEM LUVA | D160: m | E160: 220 | F160: 10.42 | G160: 11.98 | H160: 2635.6
A161: 3.5.25 | B161: 2674 | C161: ELETRODUTO DE PVC RIGIDO ROSCAVEL DE 3/4 ", SEM LUVA | D161: m | E161: 250 | F161: 4.55 | G161: 5.23 | H161: 1307.5
A162: 3.5.26 | B162: 40400 | C162: ELETRODUTO FLEXIVEL PLANO EM PEAD, COR PRETA E LARANJA, DIAMETRO 25 MM | D162: m | E162: 300 | F162: 2.05 | G162: 2.36 | H162: 708
A163: 3.5.27 | B163: 38063 | C163: INTERRUPTOR PARALELO 10A, 250V, CONJUNTO MONTADO PARA EMBUTIR 4" X 2" (PLACA + SUPORTE + MODULO) | D163: unid | E163: 2 | F163: 8.04 | G163: 9.25 | H163: 18.5
A164: 3.5.28 | B164: 38079 | C164: INTERRUPTORES SIMPLES (2 MODULOS) + TOMADA 2P+T 10A, 250V, CONJUNTO MONTADO PARA EMBUTIR 4" X 2" (PLACA + SUPORTE + MODULOS) | D164: unid | E164: 3 | F164: 18.29 | G164: 21.03 | H164: 63.09
A165: 3.5.29 | B165: 38071 | C165: INTERRUPTORES SIMPLES (3 MODULOS) 10A, 250V, CONJUNTO MONTADO PARA EMBUTIR 4" X 2" (PLACA + SUPORTE + MODULOS) | D165: unid | E165: 7 | F165: 14.51 | G165: 16.69 | H165: 116.83
A166: 3.5.30 | B166: 12118 | C166: KIT DE PROTECAO ARSTOP PARA AR CONDICIONADO, TOMADA PADRAO 2P+T 20 A, COM DISJUNTOR UNIPOLAR DIN 20A | D166: unid | E166: 2 | F166: 18.95 | G166: 21.79 | H166: 43.58
A167: 3.5.31 | B167: 38194 | C167: LAMPADA LED 10 W BIVOLT BRANCA, FORMATO TRADICIONAL (BASE E27) | D167: unid | E167: 22 | F167: 6.9 | G167: 7.94 | H167: 174.68
A168: 3.5.32 | B168: 39387 | C168: LAMPADA LED TUBULAR BIVOLT 18/20 W, BASE G13 - (25 w) | D168: unid | E168: 20 | F168: 13.23 | G168: 15.21 | H168: 304.2
A169: 3.5.33 | B169: 39386 | C169: LÂMAPDA TUBULAR LED T18, 16W, BIVOLT | D169: unid | E169: 24 | F169: 23.99 | G169: 27.59 | H169: 662.16
A170: 3.5.34 | B170: 12689/ORSE | C170: LÂMPADA TUBOLAR LED T8 18W COM 120 CM | D170: unid | E170: 14 | F170: 23.99 | G170: 27.59 | H170: 386.26
A171: 3.5.35 | B171: 39390 | C171: LUMINARIA LED REFLETOR RETANGULAR BIVOLT, LUZ BRANCA, 30 W | D171: unid | E171: 15 | F171: 36.06 | G171: 41.47 | H171: 622.05
A172: 3.5.36 | B172: 38770 | C172: LUMINARIA PLAFON REDONDO COM VIDRO FOSCO DIAMETRO *30* CM, PARA 2 LAMPADAS, BASE E27, POTENCIA MAXIMA 40/60 W (NAO INCLUI LAMPADAS) | D172: unid | E172: 22 | F172: 75.44 | G172: 86.76 | H172: 1908.72
A173: 3.5.37 | B173: 14104/ORSE | C173: LUMINÁRIA EMBUTIR, COM DUAS LÂMPADAS LED DE 20w (120CM) | D173: unid | E173: 34 | F173: 232.58 | G173: 267.47 | H173: 9093.98
A174: 3.5.38 | B174: 1891 | C174: LUVA EM PVC RIGIDO ROSCAVEL, DE 3/4", PARA ELETRODUTO | D174: unid | E174: 20 | F174: 4.54 | G174: 5.22 | H174: 104.4
A175: 3.5.39 | B175: 39756 | C175: QUADRO DE DISTRIBUICAO COM BARRAMENTO TRIFASICO, DE SOBREPOR, EM CHAPA DE ACO GALVANIZADO, PARA 12 DISJUNTORES DIN, 100 A | D175: unid | E175: 2 | F175: 351.02 | G175: 403.67 | H175: 807.34
A176: 3.5.40 | B176: 39396 | C176: SENSOR DE PRESENCA BIVOLT COM FOTOCELULA PARA QUALQUER TIPO DE LAMPADA, POTENCIA MAXIMA *1000* W, USO EXTERNO | D176: unid | E176: 2 | F176: 73.11 | G176: 84.08 | H176: 168.16
A177: 3.5.41 | B177: 38076 | C177: TOMADAS (2 MODULOS) 2P+T 10A, 250V, CONJUNTO MONTADO PARA EMBUTIR 4" X 2" (PLACA + SUPORTE + MODULOS) | D177: unid | E177: 27 | F177: 14.95 | G177: 17.19 | H177: 464.13
A178: 4.0 | C178: MATERIAIS - ABATEDOURO | H178: =H179 -> 29360.08
A179: 4.1 | C179: INSTALAÇÕES ELÉTRICAS - ABATEDOURO | H179: =SUM(H180:H227) -> 29360.08
A180: 4.1.1 | B180: 39211 | C180: ARRUELA EM ALUMINIO, COM ROSCA, DE 1 1/4", PARA ELETRODUTO | D180: und | E180: 2 | F180: 2.14 | G180: =F180*(1+($H$7)) -> 2.46 | H180: =ROUND(E180*G180,2) -> 4.92
A181: 4.1.2 | B181: 39210 | C181: ARRUELA EM ALUMINIO, COM ROSCA, DE 1", PARA ELETRODUTO | D181: und | E181: 8 | F181: 1.2 | G181: 1.38 | H181: 11.04
A182: 4.1.3 | B182: 39209 | C182: ARRUELA EM ALUMINIO, COM ROSCA, DE 3/4", PARA ELETRODUTO | D182: und | E182: 288 | F182: 0.77 | G182: 0.89 | H182: 256.32
A183: 4.1.4 | B183: 993 | C183: CABO DE COBRE, FLEXIVEL, CLASSE 4 OU 5, ISOLACAO EM PVC/A, ANTICHAMA BWF-B, COBERTURA PVC-ST1, ANTICHAMA BWF-B, 1 CONDUTOR, 0,6/1 KV, SECAO NOMINAL 1,5 MM2 (FASE) | D183: m | E183: 250 | F183: 1.68 | G183: 1.93 | H183: 482.5
A184: 4.1.5 | B184: 993 | C184: CABO DE COBRE, FLEXIVEL, CLASSE 4 OU 5, ISOLACAO EM PVC/A, ANTICHAMA BWF-B, COBERTURA PVC-ST1, ANTICHAMA BWF-B, 1 CONDUTOR, 0,6/1 KV, SECAO NOMINAL 1,5 MM2 (NEUTRO) | D184: m | E184: 300 | F184: 1.68 | G184: 1.93 | H184: 579
A185: 4.1.6 | B185: 993 | C185: CABO DE COBRE, FLEXIVEL, CLASSE 4 OU 5, ISOLACAO EM PVC/A, ANTICHAMA BWF-B, COBERTURA PVC-ST1, ANTICHAMA BWF-B, 1 CONDUTOR, 0,6/1 KV, SECAO NOMINAL 1,5 MM2 (RETORNO) | D185: m | E185: 311 | F185: 1.68 | G185: 1.93 | H185: 600.23
A186: 4.1.7 | B186: 1020 | C186: CABO DE COBRE, FLEXIVEL, CLASSE 4 OU 5, ISOLACAO EM PVC/A, ANTICHAMA BWF-B, COBERTURA PVC-ST1, ANTICHAMA BWF-B, 1 CONDUTOR, 0,6/1 KV, SECAO NOMINAL 10 MM2 - (FASE) | D186: m | E186: 120 | F186: 8.56 | G186: 9.84 | H186: 1180.8
A187: 4.1.8 | B187: 1020 | C187: CABO DE COBRE, FLEXIVEL, CLASSE 4 OU 5, ISOLACAO EM PVC/A, ANTICHAMA BWF-B, COBERTURA PVC-ST1, ANTICHAMA BWF-B, 1 CONDUTOR, 0,6/1 KV, SECAO NOMINAL 10 MM2 - (NEUTRO) | D187: m | E187: 40 | F187: 8.56 | G187: 9.84 | H187: 393.6
A188: 4.1.9 | B188: 1020 | C188: CABO DE COBRE, FLEXIVEL, CLASSE 4 OU 5, ISOLACAO EM PVC/A, ANTICHAMA BWF-B, COBERTURA PVC-ST1, ANTICHAMA BWF-B, 1 CONDUTOR, 0,6/1 KV, SECAO NOMINAL 10 MM2 - (TERRA) | D188: m | E188: 40 | F188: 8.56 | G188: 9.84 | H188: 393.6
A189: 4.1.10 | B189: 995 | C189: CABO DE COBRE, FLEXIVEL, CLASSE 4 OU 5, ISOLACAO EM PVC/A, ANTICHAMA BWF-B, COBERTURA PVC-ST1, ANTICHAMA BWF-B, 1 CONDUTOR, 0,6/1 KV, SECAO NOMINAL 16 MM2 - (TERRA) | D189: m | E189: 15 | F189: 13.64 | G189: 15.69 | H189: 235.35
A190: 4.1.11 | B190: 1022 | C190: CABO DE COBRE, FLEXIVEL, CLASSE 4 OU 5, ISOLACAO EM PVC/A, ANTICHAMA BWF-B, COBERTURA PVC-ST1, ANTICHAMA BWF-B, 1 CONDUTOR, 0,6/1 KV, SECAO NOMINAL 2,5 MM2 - FASE | D190: m | E190: 650 | F190: 2.34 | G190: 2.69 | H190: 1748.5
A191: 4.1.12 | B191: 1022 | C191: CABO DE COBRE, FLEXIVEL, CLASSE 4 OU 5, ISOLACAO EM PVC/A, ANTICHAMA BWF-B, COBERTURA PVC-ST1, ANTICHAMA BWF-B, 1 CONDUTOR, 0,6/1 KV, SECAO NOMINAL 2,5 MM2 - NEUTRO | D191: m | E191: 475 | F191: 2.34 | G191: 2.69 | H191: 1277.75
A192: 4.1.13 | B192: 1022 | C192: CABO DE COBRE, FLEXIVEL, CLASSE 4 OU 5, ISOLACAO EM PVC/A, ANTICHAMA BWF-B, COBERTURA PVC-ST1, ANTICHAMA BWF-B, 1 CONDUTOR, 0,6/1 KV, SECAO NOMINAL 2,5 MM2 - TERRA | D192: m | E192: 340 | F192: 2.34 | G192: 2.69 | H192: 914.6
A193: 4.1.14 | B193: 996 | C193: CABO DE COBRE, FLEXIVEL, CLASSE 4 OU 5, ISOLACAO EM PVC/A, ANTICHAMA BWF-B, COBERTURA PVC-ST1, ANTICHAMA BWF-B, 1 CONDUTOR, 0,6/1 KV, SECAO NOMINAL 25 MM2 - (FASE) | D193: m | E193: 40 | F193: 21.15 | G193: 24.32 | H193: 972.8
A194: 4.1.15 | B194: 996 | C194: CABO DE COBRE, FLEXIVEL, CLASSE 4 OU 5, ISOLACAO EM PVC/A, ANTICHAMA BWF-B, COBERTURA PVC-ST1, ANTICHAMA BWF-B, 1 CONDUTOR, 0,6/1 KV, SECAO NOMINAL 25 MM2 - (NEUTRO) | D194: m | E194: 15 | F194: 21.15 | G194: 24.32 | H194: 364.8
A195: 4.1.16 | B195: 1021 | C195: CABO DE COBRE, FLEXIVEL, CLASSE 4 OU 5, ISOLACAO EM PVC/A, ANTICHAMA BWF-B,COBERTURA PVC-ST1, ANTICHAMA BWF-B, 1 CONDUTOR, 0,6/1 KV, SECAO NOMINAL 4 MM2 - FASE | D195: m | E195: 150 | F195: 3.59 | G195: 4.13 | H195: 619.5
A196: 4.1.17 | B196: 1021 | C196: CABO DE COBRE, FLEXIVEL, CLASSE 4 OU 5, ISOLACAO EM PVC/A, ANTICHAMA BWF-B,COBERTURA PVC-ST1, ANTICHAMA BWF-B, 1 CONDUTOR, 0,6/1 KV, SECAO NOMINAL 4 MM2 - NEUTRO | D196: m | E196: 50 | F196: 3.59 | G196: 4.13 | H196: 206.5
A197: 4.1.18 | B197: 1021 | C197: CABO DE COBRE, FLEXIVEL, CLASSE 4 OU 5, ISOLACAO EM PVC/A, ANTICHAMA BWF-B,COBERTURA PVC-ST1, ANTICHAMA BWF-B, 1 CONDUTOR, 0,6/1 KV, SECAO NOMINAL 4 MM2 - TERRA | D197: m | E197: 30 | F197: 3.59 | G197: 4.13 | H197: 123.9
A198: 4.1.19 | B198: 11901 | C198: CABO TELEFONICO CCI 50, 1 PAR, USO INTERNO, SEM BLINDAGEM | D198: m | E198: 180 | F198: 1.72 | G198: 1.98 | H198: 356.4
A199: 4.1.20 | B199: 2556 | C199: CAIXA DE LUZ "4 X 2" EM ACO ESMALTADA | D199: unid | E199: 66 | F199: 1.49 | G199: 1.71 | H199: 112.86
A200: 4.1.21 | B200: 1872 | C200: CAIXA DE PASSAGEM, EM PVC, DE 4" X 2", PARA ELETRODUTO FLEXIVEL CORRUGADO | D200: unid | E200: 7 | F200: 2.1 | G200: 2.42 | H200: 16.94
A201: 4.1.22 | B201: 12001 | C201: CAIXA OCTOGONAL DE FUNDO MOVEL, EM PVC, DE 4" X 4", PARA ELETRODUTO FLEXIVEL CORRUGADO | D201: unid | E201: 51 | F201: 5.42 | G201: 6.23 | H201: 317.73
A202: 4.1.23 | B202: 39273 | C202: CURVA 90 GRAUS, CURTA, DE PVC RIGIDO ROSCAVEL, DE 1", PARA ELETRODUTO | D202: unid | E202: 2 | F202: 3.15 | G202: 3.62 | H202: 7.24
A203: 4.1.24 | B203: 39272 | C203: CURVA 90 GRAUS, CURTA, DE PVC RIGIDO ROSCAVEL, DE 3/4", PARA ELETRODUTO | D203: unid | E203: 56 | F203: 2.28 | G203: 2.62 | H203: 146.72
A204: 4.1.25 | B204: 1874 | C204: CURVA 90 GRAUS, LONGA, DE PVC RIGIDO ROSCAVEL, DE 1 1/4", PARA ELETRODUTO | D204: unid | E204: 1 | F204: 4.15 | G204: 4.77 | H204: 4.77
A205: 4.1.26 | B205: 2370 | C205: DISJUNTOR TIPO NEMA, MONOPOLAR 10 ATE 30A, TENSAO MAXIMA DE 240 V | D205: unid | E205: 11 | F205: 10.87 | G205: 12.5 | H205: 137.5
A206: 4.1.27 | B206: 2392 | C206: DISJUNTOR TIPO NEMA, TRIPOLAR 10 ATE 50A, TENSAO MAXIMA DE 415 V | D206: unid | E206: 8 | F206: 72.97 | G206: 83.92 | H206: 671.36
... 56 more rows

Sheet BDI-SERV
A4: DETALHAMENTO DO BDI - SERVIÇOS
A5: NÃO DESONERADO
A6: Item | B6: Descrição dos serviços | C6: Preço de Venda (%) | D6: Custo Direto (%)
A8: 1 | B8: Administração Central (A) | D8: 0.0324
A10: 2 | B10: Impostos e Taxas (I) | C10: =SUM(C11:C14) -> 0.1115
A11: 2.1 | B11: ISS | C11: 0.03
A12: 2.2 | B12: PIS | C12: 0.0065
A13: 2.3 | B13: Cofins | C13: 0.03
A14: 2.4 | B14: CPRB | C14: 0.045
A16: 3 | B16: Risco, seguro e garantia (R) | D16: =SUM(D17:D18) -> 0.015
A17: 3.1 | B17: Risco | D17: 0.01
A18: 3.2 | B18: Seguro + Garantia | D18: 0.005
A20: 4 | B20: Despesas Financeiras (DF) | D20: 0.0099
A22: 5 | B22: Lucro (L) | D22: 0.05
B24: BDI* (%) | D24: =((((1+D8+D16)*(1+D20)*(1+D22))/(1-C10)))-1 -> 0.25
B28: BDI (%) - ADOTADO | D28: =D24 -> 0.25
A30: AC = | B30: taxa de rateio da Administração Central | D30: =D8 -> 0.0324
A31: I = | B31: taxa de tributos | D31: =C10 -> 0.1115
A32: R = | B32: taxa de risco, seguro e garantia | D32: =D16 -> 0.015
A33: DF = | B33: taxa das despesas financeiras | D33: =D20 -> 0.0099
A34: L = | B34: taxa de lucro | D34: =D22 -> 0.05
B36: José Melo Ribeiro de Alcântara
B37: Engenheiro Civil

Sheet BDI-MAT
A4: DETALHAMENTO DO BDI - SERVIÇOS
A5: NÃO DESONERADO
A6: Item | B6: Descrição dos serviços | C6: Preço de Venda (%) | D6: Custo Direto (%)
A8: 1 | B8: Administração Central (A) | D8: 0.03
A10: 2 | B10: Impostos e Taxas (I) | C10: =SUM(C11:C14) -> 0.0365
A11: 2.1 | B11: ISS | C11: 0
A12: 2.2 | B12: PIS | C12: 0.0065
A13: 2.3 | B13: Cofins | C13: 0.03
A14: 2.4 | B14: CPRB | C14: 0
A16: 3 | B16: Risco, seguro e garantia (R) | D16: =SUM(D17:D18) -> 0.015
A17: 3.1 | B17: Risco | D17: 0.01
A18: 3.2 | B18: Seguro + Garantia | D18: 0.005
A20: 4 | B20: Despesas Financeiras (DF) | D20: 0.0099
A22: 5 | B22: Lucro (L) | D22: 0.05
B24: BDI* (%) | D24: =((((1+D8+D16)*(1+D20)*(1+D22))/(1-C10)))-1 -> 0.1501
B28: BDI (%) - ADOTADO | D28: 0.15
A30: AC = | B30: taxa de rateio da Administração Central | D30: =D8 -> 0.03
A31: I = | B31: taxa de tributos | D31: =C10 -> 0.0365
A32: R = | B32: taxa de risco, seguro e garantia | D32: =D16 -> 0.015
A33: DF = | B33: taxa das despesas financeiras | D33: =D20 -> 0.0099
A34: L = | B34: taxa de lucro | D34: =D22 -> 0.05
B37: José Ribeiro Alcântara
B38: Engenheiro Civil

Sheet ENCARGOS
A4: DETALHAMENTO DOS ENCARGOS SOCIAIS
A6: DISCRIMINAÇÃO | F6: SEM DESONERAÇÃO | H6: COM DESONERAÇÃO
F7: HORISTA | G7: MESALISTA | H7: HORISTA | I7: MESALISTA
A8: A | B8: GRUPO A
A9: A1 | B9: INSS | F9: 0.2 | G9: 0.2 | H9: 0,00% | I9: 0,00%
A10: A2 | B10: Sesi | F10: 0.015 | G10: 0.015 | H10: 0.015 | I10: 0.015
A11: A3 | B11: Senai | F11: 0.01 | G11: 0.01 | H11: 0.01 | I11: 0.01
A12: A4 | B12: Incra | F12: 0.002 | G12: 0.002 | H12: 0.002 | I12: 0.002
A13: A5 | B13: Sebrae | F13: 0.006 | G13: 0.006 | H13: 0.006 | I13: 0.006
A14: A6 | B14: Salário Educação | F14: 0.025 | G14: 0.025 | H14: 0.025 | I14: 0.025
A15: A7 | B15: Seguro Contra Acidente de Trabalho | F15: 0.03 | G15: 0.03 | H15: 0.03 | I15: 0.03
A16: A8 | B16: FGTS | F16: 0.08 | G16: 0.08 | H16: 0.08 | I16: 0.08
A17: A9 | B17: Seconci | F17: 0,00% | G17: 0,00% | H17: 0,00% | I17: 0,00%
A18: SUBTOTAL DE "A" | F18: =SUM(F9:F17) -> 0.368 | G18: =SUM(G9:G17) -> 0.368 | H18: =ROUND(SUM(H9:H17),4) -> 0.168 | I18: =SUM(I9:I17) -> 0.168
A20: B | B20: GRUPO B
A21: B1 | B21: Repouso Semanal Remunerado | F21: 0.1809 | G21: NÃO INCIDE | H21: 0.1809 | I21: NÃO INCIDE
A22: B2 | B22: Feriados | F22: 0.0434 | G22: NÃO INCIDE | H22: 0.0434 | I22: NÃO INCIDE
A23: B3 | B23: Auxílio - Enfermidade | F23: 0.0092 | G23: 0.0069 | H23: 0.0092 | I23: 0.0069
A24: B4 | B24: 13º Salário | F24: 0.1102 | G24: 0.0833 | H24: 0.1102 | I24: 0.0833
A25: B5 | B25: Licença Paternidade | F25: 0.0008 | G25: 0.0006 | H25: 0.0008 | I25: 0.0006
A26: B6 | B26: Faltas Justificadas | F26: 0.0073 | G26: 0.0056 | H26: 0.0073 | I26: 0.0056
A27: B7 | B27: Dias de Chuvas | F27: 0.0229 | G27: NÃO INCIDE | H27: 0.0229 | I27: NÃO INCIDE
A28: B8 | B28: Auxílio Acidente de Trabalho | F28: 0.0012 | G28: 0.0009 | H28: 0.0012 | I28: 0.0009
A29: B9 | B29: Férias Gozadas | F29: 0.1 | G29: 0.0757 | H29: 0.1 | I29: 0.0757
A30: B10 | B30: Salário Maternidade | F30: 0.0003 | G30: 0.0002 | H30: 0.0003 | I30: 0.0002
A31: SUBTOTAL DE "B" | F31: =ROUND(SUM(F21:F30),4) -> 0.4762 | G31: =SUM(G22:G30) -> 0.1732 | H31: =ROUND(SUM(H21:H30),4) -> 0.4762 | I31: =SUM(I22:I30) -> 0.1732
A33: C | B33: GRUPO C
A34: C1 | B34: Aviso Prévio Indenizado | F34: 0.0653 | G34: 0.0494 | H34: 0.0653 | I34: 0.0494
A35: C2 | B35: Aviso Prévio Trabalhado | F35: 0.0015 | G35: 0.0012 | H35: 0.0015 | I35: 0.0012
A36: C3 | B36: Férias Indenizadas | F36: 0.044 | G36: 0.0333 | H36: 0.044 | I36: 0.0333
A37: C4 | B37: Depósito Recisão Sem Justa Causa | F37: 0.0523 | G37: 0.0396 | H37: 0.0523 | I37: 0.0396
A38: C5 | B38: Indenização Adicional | F38: 0.0055 | G38: 0.0042 | H38: 0.0055 | I38: 0.0042
A39: SUBTOTAL DE "C" | F39: =ROUND(SUM(F34:F38),4) -> 0.1686 | G39: =SUM(G34:G38) -> 0.1277 | H39: =ROUND(SUM(H34:H38),4) -> 0.1686 | I39: =SUM(I34:I38) -> 0.1277
A41: D | B41: GRUPO D
A42: D1 | B42: Reincidência de Grupo A sobre Grupo B | F42: 0.1752 | G42: 0.0637 | H42: 0.08 | I42: 0.0291
A43: D2 | B43: Reincidência de Grupo A sobre Aviso Prévio Trabalhado e Reincidência do FGTS sobre Aviso Prévio Indenizado | F43: 0.0058 | G43: 0.0044 | H43: 0.0055 | I43: 0.0042
A44: SUBTOTAL DE "D" | F44: =ROUND(SUM(F42:F43),4) -> 0.181 | G44: =SUM(G42:G43) -> 0.0681 | H44: =ROUND(SUM(H42:H43),4) -> 0.0855 | I44: =SUM(I42:I43) -> 0.0333
A46: TOTAIS DE ENCARGOS SOCIAIS | F46: =F18+F31+F39+F44 -> 1.1938 | G46: =G18+G31+G39+G44 -> 0.737 | H46: =H18+H31+H39+H44 -> 0.8983 | I46: =I18+I31+I39+I44 -> 0.5022
D48: José Melo Ribeiro Alcântara
D49: Engeheiro Civil

Sheet CPU
A1: Ministério do Desenvolvimento Regional - MDR Companhia de Desenvolvimento dos Vales do São Francisco e do Parnaíba Área de Reviatlização e Sustentabilidade Socioambiental - AR
A7: SINAPI-BA 08/2023 (NÃO DESONERADO)
A8: ORSE 08/2023
A9: CPU 001 | D9: COMPOSIÇÃO DE PREÇO UNITÁRIO
A10: OBRA | B10: PROJETO PARA CONSTRUÇÃO DE UM ABATEDOURO DE CAPRINOS E OVINOS NO MUNICIPIO DE CAMPO FORMOSO - BAHIA | H10: DATA: Agosto/2023
A11: SERVIÇO | B11: Mobilização de Equipamento, Material e pessoal até o local de execução da obra, com deslocamentos internos. | H11: UNIDADE: | I11: unid
B12: EQUIPAMENTO
A13: CODIGO | B13: DISCRIMINAÇÃO | C13: UNIDADE | D13: QUANT. | E13: PROD | F13: IMPROD | G13: P.UNIT. PROD | H13: P.UNIT. IMPR | I13: P.TOTAL
A14: 89877 | B14: TRANSPORTES DE MÁQUINAS E EQUIPAMENTOS POR CAMINHÃO CAVALO MECÂNICO COM CARRETA PRANCHA CAP. 20T | C14: h | D14: 2.75 | E14: 1 | G14: 87.66 | I14: =D14*E14*G14+D14*F14*H14 -> 241.07
A15: 5853 | B15: TRATOR DE ESTEIRAS, POTÊNCIA 150 HP, PESO OPERACIONAL 16,7 T, COM RODA MOTRIZ ELEVADA E LÂMINA 3,18 M3 - CHI DIURNO. AF_06/2014 | C15: CHI | D15: 2.75 | F15: 1 | H15: 98.45 | I15: =D15*E15*G15+D15*F15*H15 -> 270.74
A16: 88908 | B16: ESCAVADEIRA HIDRÁULICA SOBRE ESTEIRAS, CAÇAMBA 1,20 M3, PESO OPERACIONAL 21 T, POTÊNCIA BRUTA 155 HP - CHI DIURNO. AF_06/2014 | C16: CHI | D16: 2.75 | F16: 1 | H16: 108.02 | I16: =D16*E16*G16+D16*F16*H16 -> 297.06
A17: 91386 | B17: CAMINHÃO BASCULANTE 10 M3, TRUCADO CABINE SIMPLES, PESO BRUTO TOTAL 23.000 KG, CARGA ÚTIL MÁXIMA 15.935 KG, DISTÂNCIA ENTRE EIXOS 4,80 M, POTÊNCIA 230 CV INCLUSIVE CAÇAMBA METÁLICA - CHP DIURNO. AF_06/2014 | C17: CHP | D17: 2.75 | E17: 1 | G17: 264.52 | I17: =D17*E17*G17+D17*F17*H17 -> 727.43
B18: SUB-TOTAL | I18: =SUM(I14:I17) -> 1536.3
A19: MATERIAL
B21: TOTAL - R$ | I21: =I18 -> 1536.3
B22: TOTAL DO SERVIÇO - R$ | I22: =I21 -> 1536.3
A26: CPU 002 | D26: COMPOSIÇÃO DE PREÇO UNITÁRIO
A27: OBRA | B27: PROJETO PARA CONSTRUÇÃO DE UM ABATEDOURO DE CAPRINOS E OVINOS NO MUNICIPIO DE CAMPO FORMOSO - BAHIA | H27: DATA: Agosto/2023
A28: SERVIÇO | B28: Administração e Manutenção de canteiro de obras | H28: UNIDADE: | I28: unid
B29: EQUIPAMENTO
B30: DISCRIMINAÇÃO | C30: UNIDADE | D30: QUANT. | E30: PROD | F30: IMPROD | G30: P.UNIT. PROD | H30: P.UNIT. IMPR | I30: P.TOTAL
A31: 05896/ORSE | B31: TIPO SEDAN 1.6 FLEX (115CV) - s/ motorista | C31: mês | D31: 1 | G31: 2998.8 | I31: =G31*D31 -> 2998.8
B32: SUB-TOTAL | I32: =SUM(I31:I31) -> 2998.8
B33: MATERIAL
B34: DISCRIMINAÇÃO | C34: UNIDADE | D34: QUANT. | H34: P.UNIT. | I34: P.TOTAL
A35: 10778 | B35: Alojamento para operario - Aluguel e manutenção | C35: mês | D35: 1 | H35: 1750 | I35: =D35*H35 -> 1750
B36: SUB-TOTAL | I36: =SUM(I35:I35) -> 1750
B37: MÃO DE OBRA
B38: DISCRIMINAÇÃO | C38: UNIDADE | D38: QUANT. | H38: P.UNIT. | I38: P.TOTAL
A39: 100319 | B39: ENGENHEIRO JUNIOR COM ENCARGOS | C39: mês | D39: 0.2 | H39: 20033.13 | I39: =D39*H39 -> 4006.63
A40: 93572 | B40: ENCARREGADO GERAL - COM ENCARGOS | C40: mês | D40: 0.5 | H40: 6446.14 | I40: =D40*H40 -> 3223.07
A41: 101385 | B41: LABORATORISTA DE SOLOS - COM NECARGOS | C41: mês | D41: 0.5 | H41: 5309.45 | I41: =D41*H41 -> 2654.73
A42: 93563 | B42: ALMOXARIFE - COM ENCARGOS | C42: mês | D42: 1 | H42: 5232.01 | I42: =D42*H42 -> 5232.01
A43: 101452 | B43: SERVENTE - COM ENCARGOS COMPLEMENTARES | C43: mês | D43: 1 | H43: 3859.29 | I43: =D43*H43 -> 3859.29
B44: SUB-TOTAL | I44: =SUM(I39:I43) -> 18975.73
B46: TOTAL DO SERVIÇO R$ (mês) | I46: =I44+I36+I32 -> 23724.53
B47: TOTAL DO SERVIÇO - R$ | I47: =I46 -> 23724.53
A51: CPU 003 | D51: COMPOSIÇÃO DE PREÇO UNITÁRIO
A52: OBRA | B52: PROJETO PARA CONSTRUÇÃO DE UM ABATEDOURO DE CAPRINOS E OVINOS NO MUNICIPIO DE CAMPO FORMOSO - BAHIA | H52: DATA: Agosto/2023
A53: SERVIÇO | B53: Instalações Prediais de Água Fria | H53: UNIDADE: | I53: unid
A54: MÃO DE OBRA
A55: CÓDIGO | B55: DISCRIMINAÇÃO | C55: UNIDADE | D55: QUANT. | H55: P.UNIT. | I55: P.TOTAL
A56: 88248 | B56: AUXILIAR DE ENCANADOR COM ENCARGOS | C56: h | D56: 320 | H56: 21.45 | I56: =D56*H56 -> 6864
A57: 88267 | B57: ENCANADOR OU BOMBEIRO HIDRAULICO COM ENCARGOS COMPLEMENTARES | C57: h | D57: 160 | H57: 29.85 | I57: =D57*H57 -> 4776
A58: 2707 | B58: ENGENHEIRO DE OBRA PLENO | C58: h | D58: 16 | H58: 124.87 | I58: =D58*H58 -> 1997.92
B59: SUB-TOTAL | I59: =SUM(I56:I58) -> 13637.92
B60: PRODUÇÃO DA EQUIPE | C60: 1 | D60: CUSTO | I60: =I59 -> 13637.92
A61: TOTAL DO SERVIÇO - R$ | I61: =I60 -> 13637.92
A63: CPU 004 | D63: COMPOSIÇÃO DE PREÇO UNITÁRIO
A64: OBRA | B64: PROJETO PARA CONSTRUÇÃO DE UM ABATEDOURO DE CAPRINOS E OVINOS NO MUNICIPIO DE CAMPO FORMOSO - BAHIA | H64: DATA: Agosto/2023
A65: SERVIÇO | B65: Instalações Esgoto e Águas Pluviais | H65: UNIDADE: | I65: unid
A66: MÃO DE OBRA
A67: CÓDIGO | B67: DISCRIMINAÇÃO | C67: UNIDADE | D67: QUANT. | H67: P.UNIT. | I67: P.TOTAL
A68: 88248 | B68: AUXILIAR DE ENCANADOR COM ENCARGOS | C68: h | D68: 160 | H68: 21.45 | I68: =D68*H68 -> 3432
A69: 88267 | B69: ENCANADOR OU BOMBEIRO HIDRAULICO COM ENCARGOS COMPLEMENTARES | C69: h | D69: 160 | H69: 29.85 | I69: =D69*H69 -> 4776
A70: 2707 | B70: ENGENHEIRO DE OBRA PLENO | C70: h | D70: 12 | H70: 124.87 | I70: =D70*H70 -> 1498.44
B71: SUB-TOTAL | I71: =SUM(I68:I70) -> 9706.44
A72: TOTAL DO SERVIÇO - R$ | I72: =I71 -> 9706.44
A74: CPU 005 | D74: COMPOSIÇÃO DE PREÇO UNITÁRIO
A75: OBRA | B75: PROJETO PARA CONSTRUÇÃO DE UM ABATEDOURO DE CAPRINOS E OVINOS NO MUNICIPIO DE CAMPO FORMOSO - BAHIA | H75: DATA: Agosto/2023
A76: SERVIÇO | B76: Serviços para execução da instalação elétrica, lógica e telefonia. | H76: UNIDADE: | I76: unid
A77: MÃO DE OBRA
A78: CÓDIGO | B78: DISCRIMINAÇÃO | C78: UNIDADE | D78: QUANT. | H78: P.UNIT. | I78: P.TOTAL
A79: 88247 | B79: Auxiliar de Eletricista com encargos (4 profissionais por 2,5 meses de 220 horas) | C79: H | D79: =4 * 2.5 * 220 -> 2200 | H79: 22.4 | I79: =D79*H79 -> 49280
A80: 88264 | B80: Eletricista com encargos (2 profissionais por 2,5 meses de 220 horas) | C80: H | D80: =2 * 2.5 * 220 -> 1100 | H80: 30.96 | I80: =D80*H80 -> 34056
A81: 88265 | B81: Eletricista Industrial com encargos (1 profissional por 44 horas) | C81: H | D81: 44 | H81: 32.3 | I81: =D81*H81 -> 1421.2
A82: 91677 | B82: Engenheiro Eletricista com encargos, Pleno de Obra (1 profissional para supervisão por 100 horas) | C82: H | D82: 100 | H82: 115.26 | I82: =D82*H82 -> 11526
B83: SUB-TOTAL | I83: =SUM(I79:I82) -> 96283.2
A84: TOTAL DO SERVIÇO - R$ | I84: =I83 -> 96283.2
A86: CPU 006 | D86: COMPOSIÇÃO DE PREÇO UNITÁRIO
A87: OBRA | B87: PROJETO PARA CONSTRUÇÃO DE UM ABATEDOURO DE CAPRINOS E OVINOS NO MUNICIPIO DE CAMPO FORMOSO - BAHIA | H87: DATA: Agosto/2023
A88: SERVIÇO | B88: Emassamento com Massa a Óleo | H88: UNIDADE: | I88: M²
A89: CÓDIGO | B89: DISCRIMINAÇÃO | C89: UNIDADE | D89: QUANT. | H89: P.UNIT. | I89: P.TOTAL
A90: 3767 | B90: LIXA EM FOLHA PARA PAREDE OU MADEIRA, NUMERO 120 (COR VERMELHA) | C90: UND | D90: 0.5 | H90: 1.02 | I90: =H90*D90 -> 0.51
A91: 1604/ORSE | B91: MASSA BASE ÓLEO | C91: KG | D91: 0.45 | H91: 28.54 | I91: =H91*D91 -> 12.84
A92: 88310 | B92: PINTOR COM ENCARGOS COMPLEMENTARES | C92: H | D92: 0.35 | H92: 31.8 | I92: 11.13
A93: 88316 | B93: SERVENTE COM ENCARGOS COMPLEMENTARES | C93: H | D93: 0.25 | H93: 21.47 | I93: 5.37
H94: SUB-TOTAL | I94: =SUM(I90:I93) -> 29.85
A95: TOTAL DO SERVIÇO - R$ | I95: =I94 -> 29.85
A97: CPU 007 | D97: COMPOSIÇÃO DE PREÇO UNITÁRIO
A98: OBRA | B98: PROJETO PARA CONSTRUÇÃO DE UM ABATEDOURO DE CAPRINOS E OVINOS NO MUNICIPIO DE CAMPO FORMOSO - BAHIA | H98: DATA: Agosto/2023
A99: SERVIÇO | B99: LAJE PRE-MOLDADA P/FORRO, SOBRECARGA 100KG/M2, VAOS ATE 3,50M/E=8CM, C /LAJOTAS E CAP.C/CONC FCK=20MPA, 3CM, INTER-EIXO 38CM, C/ESCORAMENTO (REAPR.3X) E FERRAGEM NEGATIVA | H99: UNIDADE: | I99: M²
A100: CÓDIGO | B100: DISCRIMINAÇÃO | C100: UNIDADE | D100: QUANT. | H100: P.UNIT. | I100: P.TOTAL
A101: 43059 | B101: ACO CA-60, 5,0 MM, VERGALHAO | C101: KG | D101: 0.471 | H101: 7.67 | I101: =H101*D101 -> 3.61
A102: 3736 | B102: LAJE PRE-MOLDADA CONVENCIONAL (LAJOTAS + VIGOTAS) PARA FORRO, UNIDIRECIONAL, SOBRECARGA DE 100 KG/M2, VAO ATE 4,00 M (SEM COLOCACAO) | C102: M² | D102: 1 | H102: 43.5 | I102: =H102*D102 -> 43.5
A103: 4491 | B103: PECA DE MADEIRA NATIVA / REGIONAL 7,5 X 7,5CM (3X3) NAO APARELHADA (P/FORMA) | C103: M | D103: 0.29 | H103: 9.65 | I103: 2.8
A104: 5061 | B104: PREGO DE ACO POLIDO COM CABECA 18 X 27 (2 1/2 X 10) | C104: KG | D104: 0.03 | H104: 18.39 | I104: 0.55
A105: 6189 | B105: TABUA MADEIRA 2A QUALIDADE 2,5 X 30,0CM (1 X 12") NAO APARELHADA | C105: M | D105: 0.17 | H105: 27.22 | I105: 4.63
A106: 88239 | B106: AJUDANTE CARPINTEIRO | C106: H | D106: 0.16 | H106: 21.9 | I106: 3.5
A107: 88262 | B107: CARPINTEIRO DE FORMAS COM ENCARGOS COMPLEMENTARES | C107: H | D107: 0.16 | H107: 30.2 | I107: 4.83
A108: 88309 | B108: PEDREIRO COM ENCARGOS COMPLEMENTARES | C108: H | D108: 0.35 | H108: 30.6 | I108: 10.71
A109: 88316 | B109: SERVENTE COM ENCARGOS COMPLEMENTARES | C109: H | D109: 0.36 | H109: 21.47 | I109: 7.73
A110: 103673 | B110: LANÇAMENTO COM USO DE BOMBA, ADENSAMENTO E ACABAMENTO DE CONCRETO EM ESTRUTURAS. AF_12/2015 | C110: M³ | D110: 0.033 | H110: 42.67 | I110: =H110*D110 -> 1.41
A111: 94970 | B111: CONCRETO FCK = 20MPA, TRAÇO 1:2,7:3 (CIMENTO/ AREIA MÉDIA/ BRITA 1) - PREPARO MECÂNICO COM BETONEIRA 600 L. AF_07/2016 | C111: M³ | D111: 0.033 | H111: 497.69 | I111: =H111*D111 -> 16.42
H112: SUB-TOTAL | I112: =SUM(I101:I111) -> 99.69
A113: TOTAL DO SERVIÇO - R$ | I113: =I112 -> 99.69
A116: CPU 008 | D116: COMPOSIÇÃO DE PREÇO UNITÁRIO
A117: OBRA | B117: PROJETO PARA CONSTRUÇÃO DE UM ABATEDOURO DE CAPRINOS E OVINOS NO MUNICIPIO DE CAMPO FORMOSO - BAHIA | H117: DATA: Agosto/2023
A118: SERVIÇO | B118: POSTE DE ACO CONICO CONTINUO RETO, ENGASTADO, H=9M - FORNECIMENTO E INSTALAÇÃO S/ LUMINÁRIA | H118: UNIDADE: | I118: UND
A119: CÓDIGO | B119: COMPONENTES | C119: UND | D119: QUANT. | H119: CUST. UNIT. | I119: CUSTO SINAPI
A121: 5928 | B121: GUINDAUTO HIDRÁULICO, CAPACIDADE MÁXIMA DE CARGA 6200 KG, MOMENTO MÁXIMO DE CARGA 11,7 TM, ALCANCE MÁXIMO HORIZONTAL 9,70 M, INCLUSIVE CAMINHÃO TOCO PBT 16.000 KG, POTÊNCIA DE 189 CV - CHP DIURNO. AF_06/2014 | C121: CHP | D121: 0.111 | H121: 237.37 | I121: =H121*D121 -> 26.35
A122: 88247 | B122: AUXILIAR DE ELETRICISTA COM ENCARGOS COMPLEMENTARES | C122: H | D122: 1.413 | H122: 22.4 | I122: =H122*D122 -> 31.65
A123: 88264 | B123: ELETRICISTA COM ENCARGOS COMPLEMENTARES | C123: H | D123: 4.593 | H123: 30.96 | I123: =H123*D123 -> 142.2
A124: 863 | B124: CABO DE COBRE NU 35 MM2 MEIO-DURO | C124: M | D124: 9 | H124: 32.62 | I124: 293.58
A125: 14164 | B125: POSTE CONICO CONTINUO EM ACO GALVANIZADO, CURVO, BRACO DUPLO, ENGASTADO, H = 9 M, DIAMETRO INFERIOR = *135* MM | C125: UND | D125: 1 | H125: 2009.89 | I125: 2009.89
H126: SUB-TOTAL | I126: =SUM(I121:I125) -> 2503.67
A127: TOTAL DO SERVIÇO - R$ | I127: =I126 -> 2503.67
A131: CPU 009 | D131: COMPOSIÇÃO DE PREÇO UNITÁRIO
A132: OBRA | B132: PROJETO PARA CONSTRUÇÃO DE UM ABATEDOURO DE CAPRINOS E OVINOS NO MUNICIPIO DE CAMPO FORMOSO - BAHIA | H132: DATA: Agosto/2023
A133: SERVIÇO | B133: IMPERMEABILIZAÇÃO COM MANTA PEAD, GEOMEMBRANA LISA, E=2mm - EXCETO MATERIAL | H133: UNIDADE: | I133: M²
A134: CÓDIGO | B134: COMPONENTES | C134: UND | D134: QUANT. | H134: CUST. UNIT. | I134: CUSTO SINAPI
A135: 88270 | B135: Impermeabilizador | C135: H | D135: 0.2 | H135: 31.96 | I135: =D135*H135 -> 6.39
A136: 08904/ORSE | B136: Máquina de solda elétrica | C136: H | D136: 0.05 | H136: 3.84 | I136: 0.19
A137: 88316 | B137: SERVENTE COM ENCARGOS COMPLEMENTARES | C137: H | D137: 0.2 | H137: 21.47 | I137: 4.29
H138: SUB-TOTAL | I138: =SUM(I135:I137) -> 10.87
A139: TOTAL DO SERVIÇO - R$ | I139: =I138 -> 10.87
A142: CPU 010 | D142: COMPOSIÇÃO DE PREÇO UNITÁRIO
A143: OBRA | B143: PROJETO PARA CONSTRUÇÃO DE UM ABATEDOURO DE CAPRINOS E OVINOS NO MUNICIPIO DE CAMPO FORMOSO - BAHIA | H143: DATA: Agosto/2023
A144: SERVIÇO | B144: SERVIÇO DE INSTALAÇÃO DE SUBESTAÇÃO AÉREA 125KVA | H144: UNIDADE: | I144: UND
A145: CÓDIGO | B145: COMPONENTES | C145: UND | D145: QUANT. | H145: CUST. UNIT. | I145: CUSTO SINAPI
A146: 88247 | B146: AUXILIAR DE ELETRICISTA COM ENCARGOS COMPLEMENTARES | C146: H | D146: 24 | H146: 22.4 | I146: =H146*D146 -> 537.6
A147: 88316 | B147: SERVENTE COM ENCARGOS COMPLEMENTARES | C147: H | D147: 32 | H147: 21.47 | I147: =H147*D147 -> 687.04
A148: 88264 | B148: ELETRICISTA COM ENCARGOS COMPLEMENTARES | C148: H | D148: 40 | H148: 30.96 | I148: 1238.4
A149: 88266 | B149: ELETROTECNICO COM ENCARGOS COMPLEMENTARES | C149: H | D149: 22 | H149: 37.5 | I149: 825
H150: SUB-TOTAL | I150: =SUM(I146:I149) -> 3288.04
A151: TOTAL DO SERVIÇO - R$ | I151: =I150 -> 3288.04
A154: CPU 011 | D154: COMPOSIÇÃO DE PREÇO UNITÁRIO
A155: OBRA | B155: PROJETO PARA CONSTRUÇÃO DE UM ABATEDOURO DE CAPRINOS E OVINOS NO MUNICIPIO DE CAMPO FORMOSO - BAHIA | H155: DATA: Agosto/2023
A156: SERVIÇO | B156: CONFECÇÃO DE RAMPA DE LAVAGEM DE CAMINHÃO | H156: UNIDADE: | I156: UND
A157: CÓDIGO | B157: COMPONENTES | C157: UND | D157: QUANT. | H157: CUST. UNIT. | I157: CUSTO SINAPI
A158: 103340 | B158: ALVENARIA DE VEDAÇÃO DE BLOCOS VAZADOS DE CONCRETO APARENTE DE 19X19X39 CM (ESPESSURA 19 CM) E ARGAMASSA DE ASSENTAMENTO COM PREPARO EM BETONEIRA. | C158: m2 | D158: 18.18 | H158: 121.63 | I158: =H158*D158 -> 2211.23
A159: 97084 | B159: COMPACTAÇÃO MECÂNICA DE SOLO, COM COMPACTADOR TIPO PLACA VIBRATÓRIA | C159: m³ | D159: 60.3 | H159: 0.71 | I159: =H159*D159 -> 42.81
A160: 92762 | B160: ARMAÇÃO DE PILAR OU VIGA DE ESTRUTURA CONVENCIONAL DE CONCRETO ARMADO UTILIZANDO AÇO CA-50 DE 10,0 MM | C160: Kg | D160: 620 | H160: 11.33 | I160: 7024.6
A161: 94965 | B161: CONCRETO FCK = 25MPA - PREPARO MECÂNICO COM BETONEIRA | C161: m³ | D161: 18.5 | H161: 532.73 | I161: 9855.51
A162: 2498/ORSE | B162: ESCAVAÇÃO MANUAL, MATERIAL DE 1ª CATEGORIA, PROFUNDIDADE DE 1,5 A 3,00M | C162: m³ | D162: 10.19 | H162: 74.33 | I162: 757.42
A163: 3358/ORSE | B163: FORMA PARA ESTRUTURAS, EM COMPENSADO RESINADO 10mm, 3 USOS, INCLUSIVE ESCORAMENTO | C163: m² | D163: 71.2 | H163: 124.25 | I163: 8846.6
A164: 104737 | B164: REATERRO MANUAL DE VALAS, COM PLACA VIBRATÓRIA | C164: m³ | D164: 4.31 | H164: 21.56 | I164: 92.92
H165: SUB-TOTAL | I165: =SUM(I158:I164) -> 28831.09
A166: TOTAL DO SERVIÇO - R$ | I166: =I165 -> 28831.09
C169: José Melo Ribeiro Alcântara
C170: Engeiro Civil

Sheet CRONOGRAMA
A1: CODEVASF
A2: CRONOGRAMA FINANCEIRO
G4: PROJETO:PROJETO PARA CONSTRUÇÃO DE UM ABATEDOURO DE CAPRINOS E OVINOS NO MUNICIPIO DE CAMPO FORMOSO - BAHIA
A5: ITEM | B5: DESCRIÇÃO DOS SERVIÇOS | F5: VALOR TOTAL | G5: MESES
F6: DO ITEM | G6: 1 | I6: 2 | K6: 3 | M6: 4 | O6: 5 | Q6: 6 | S6: 7 | U6: 8 | W6: 9 | Y6: 10 | AA6: 11 | AC6: 12
A7: 1 | B7: ='PLAN SERVIÇO'!C6 -> SERVIÇOS PRELIMINARES | F7: ='PLAN SERVIÇO'!H6 -> 604984.72 | G7: =(249116.8/3+29655.66)-35.99 -> 112658.6 | I7: =(249116.8/3+29655.66) -> 112694.59 | K7: 29655.66 | M7: 29656.66 | O7: 29657.66 | Q7: 29658.66 | S7: 29659.66 | U7: 29660.66 | W7: 29661.66 | Y7: 29662.66 | AA7: 29663.66 | AC7: =(249116.8/3+29655.66) -> 112694.59
A8: 2 | B8: ='PLAN SERVIÇO'!C15 -> RESERVATÓRIO | F8: ='PLAN SERVIÇO'!H15 -> 206288.88 | I8: =$F$8/4 -> 51572.22 | K8: =$F$8/4 -> 51572.22 | M8: =$F$8/4 -> 51572.22 | U8: =$F$8/4 -> 51572.22
A9: 3 | B9: ='PLAN SERVIÇO'!C64 -> SUB - ESTAÇÃO AÉREA DE 112,5 KVA (SERVIÇO) | F9: ='PLAN SERVIÇO'!H64 -> 4110.05 | G9: =$F$9/3 -> 1370.02 | I9: =$F$9/3 -> 1370.02 | K9: =$F$9/3 -> 1370.02
A10: 4 | B10: ='PLAN SERVIÇO'!C67 -> APOIO ADMISTRATIVO / VESTIÁRIO / BANHEIROS | F10: ='PLAN SERVIÇO'!H67 -> 467682.36 | G10: =$F$10/4 -> 116920.59 | I10: =$F$10/4 -> 116920.59 | K10: =$F$10/4 -> 116920.59 | M10: =$F$10/8 -> 58460.3 | U10: =$F$10/8 -> 58460.3
A11: 5 | B11: ='PLAN SERVIÇO'!C138 -> ABATEDOURO FRIGORÍFICO | F11: ='PLAN SERVIÇO'!H138 -> 1635757 | I11: =$F$11/8 -> 204469.63 | K11: =$F$11/8 -> 204469.63 | M11: =$F$11/8 -> 204469.63 | O11: =$F$11/8 -> 204469.63 | Q11: =$F$11/8 -> 204469.63 | S11: =$F$11/8 -> 204469.63 | U11: 204469.63 | W11: =$F$11/8-0.04 -> 204469.59
A12: 6 | B12: ='PLAN SERVIÇO'!C214 -> CORREDOR DE MATANÇA | F12: ='PLAN SERVIÇO'!H214 -> 117005.64 | S12: =$F$12/2 -> 58502.82 | U12: =$F$12/2 -> 58502.82
A13: 7 | B13: ='PLAN SERVIÇO'!C251 -> CURRAIS | F13: ='PLAN SERVIÇO'!H251 -> 572075.12 | U13: =$F$13/3 -> 190691.71 | W13: =$F$13/3 -> 190691.71 | Y13: =$F$13/3 -> 190691.71
A14: 8 | B14: ='PLAN SERVIÇO'!C317 -> GUARITA | F14: ='PLAN SERVIÇO'!H317 -> 37855.13 | M14: =$F$14/1 -> 37855.13
A15: 9 | B15: ='PLAN SERVIÇO'!C373 -> INCINERADOR | F15: ='PLAN SERVIÇO'!H373 -> 140937.16 | W15: =$F$15/2 -> 70468.58 | Y15: =$F$15/2 -> 70468.58
A16: 10 | B16: ='PLAN SERVIÇO'!C433 -> CENTRAL DE RESIDUOS | F16: ='PLAN SERVIÇO'!H433 -> 56089.06 | M16: =$F$16/2 -> 28044.53 | O16: =$F$16/2 -> 28044.53
A17: 11 | B17: ='PLAN SERVIÇO'!C488 -> ESTERQUEIRA / COMPOSTEIRA | F17: ='PLAN SERVIÇO'!H488 -> 71395.08 | U17: =$F$17/2 -> 35697.54 | W17: =$F$17/2 -> 35697.54
A18: 12 | B18: ='PLAN SERVIÇO'!C540 -> CAIXA DE AREIA | F18: ='PLAN SERVIÇO'!H540 -> 14771.82 | Y18: =$F$18/2 -> 7385.91 | AA18: =$F$18/2 -> 7385.91
A19: 13 | B19: ='PLAN SERVIÇO'!C557 -> LAGOA DE TRATAMENTO DO ESGOTO - ETE | F19: ='PLAN SERVIÇO'!H557 -> 192179.4 | M19: =$F$19/8-0.04 -> 24022.39 | O19: =$F$19/8 -> 24022.43 | Q19: =$F$19/8 -> 24022.43 | S19: =$F$19/8 -> 24022.43 | U19: =$F$19/8 -> 24022.43 | W19: =$F$19/8 -> 24022.43 | Y19: =$F$19/8 -> 24022.43 | AA19: =$F$19/8 -> 24022.43
A20: 14 | B20: ='PLAN SERVIÇO'!C585 -> PAVIMENTAÇÃO / CERCAS / AREA VERDE / RAMPA DE LAVAGEM DE CAMINHÕES/ SALA DE NECROPSIA | F20: ='PLAN SERVIÇO'!H585 -> 715597.87 | W20: =$F$20/4 -> 178899.47 | Y20: =$F$20/4 -> 178899.47 | AA20: =$F$20/4 -> 178899.47 | AC20: =$F$20/4 -> 178899.47
A21: 15 | B21: MATERIAL | F21: ='PLAN MATERIAL'!F264 -> 342714.6 | G21: =$F$21/12 -> 28559.55 | I21: =$F$21/12 -> 28559.55 | K21: =$F$21/12 -> 28559.55 | M21: =$F$21/12 -> 28559.55 | O21: =$F$21/12 -> 28559.55 | Q21: =$F$21/12 -> 28559.55 | S21: =$F$21/12 -> 28559.55 | U21: =$F$21/12 -> 28559.55 | W21: =$F$21/12 -> 28559.55 | Y21: =$F$21/12 -> 28559.55 | AA21: =$F$21/12 -> 28559.55 | AC21: =$F$21/12 -> 28559.55
A22: TOTAL MENSAL | D22: REAIS | F22: =SUM(F7:F21) -> 5179443.89 | G22: =SUM(G7:H21) -> 259508.76 | I22: =SUM(I7:J21) -> 515586.6 | K22: =SUM(K7:L21) -> 432547.67 | M22: =SUM(M7:N21) -> 462640.41 | O22: =SUM(O7:P21) -> 314753.8 | Q22: =SUM(Q7:R21) -> 286710.27 | S22: =SUM(S7:T21) -> 345214.09 | U22: =SUM(U7:V21) -> 681636.86 | W22: =SUM(W7:X21) -> 762470.53 | Y22: =SUM(Y7:Z21) -> 529690.31 | AA22: =SUM(AA7:AB21) -> 268531.02 | AC22: =SUM(AC7:AD21) -> 320153.61
D23: MOEDA ESTRANGEIRA
A24: TOTAL ACUMULADO | D24: REAIS | F24: =F22 -> 5179443.89 | G24: =G22 -> 259508.76 | I24: =G24+I22 -> 775095.36 | K24: =I24+K22 -> 1207643.03 | M24: =K24+M22 -> 1670283.44 | O24: =M24+O22 -> 1985037.24 | Q24: =O24+Q22 -> 2271747.51 | S24: =Q24+S22 -> 2616961.6 | U24: =S24+U22 -> 3298598.46 | W24: =U24+W22 -> 4061068.99 | Y24: =W24+Y22 -> 4590759.3 | AA24: =Y24+AA22 -> 4859290.32 | AC24: =(AA24+AC22)-0.04 -> 5179443.89
D25: MOEDA ESTRANGEIRA
A26: NOME DO INFORMANTE: | G26: DATA
G27: 08/11/2023
A28: QUALIFICAÇÃO DIRETOR | E28: ASSINATURA:
